Portfolio,Expense Area,Cost Centre,Expense Type,Account Code,Amount,Supplier Name,SupplierId,Pay Date,Transaction No.
Resources & Corporate Governance ,Mayoral Services,May-00,Maintenance of Equipment,301,567.15,Abel Alarm Co Ltd,100005,01/03/2012,10163870
Sustainable Environment,Regulatory Services,REG00,Personal Protective Clothing,340,42.95,Arco Limited,100015,08/03/2012,10163703
Resources & Corporate Governance ,Toilet Cleaning,WBC01,Personal Protective Clothing,340,6.22,Arco Limited,100015,08/03/2012,10163703
Resources & Corporate Governance ,Grounds Maintenance,WGM00,Personal Protective Clothing,340,65.44,Arco Limited,100015,08/03/2012,10163703
Resources & Corporate Governance ,Highways,WHG00,Personal Protective Clothing,340,9.35,Arco Limited,100015,08/03/2012,10163703
Resources & Corporate Governance,Handy man,WHM00,Personal Protective Clothing,340,142.5,Arco Limited,100015,08/03/2012,10163703
Resources & Corporate Governance ,Street Cleansing,WSC00,Personal Protective Clothing,340,74.79,Arco Limited,100015,08/03/2012,10163703
Resources & Corporate Governance ,Garage Internal,WVR01,Personal Protective Clothing,340,12.47,Arco Limited,100015,08/03/2012,10163703
Resources & Corporate Governance ,Domestic Waste Collection,WWC00,Personal Protective Clothing,340,130.88,Arco Limited,100015,08/03/2012,10163703
Resources & Corporate Governance ,Trade Waste Collection,WWC01,Personal Protective Clothing,340,12.47,Arco Limited,100015,08/03/2012,10163703
Resources & Corporate Governance ,WSU Depot,WDP00,Messing Facilities,332,390.8,Arco Limited,100015,08/03/2012,10164085
Resources & Corporate Governance,Handy man,WHM00,Personal Protective Clothing,340,11.95,Arco Limited,100015,08/03/2012,10164085
Resources & Corporate Governance ,Street Cleansing,WSC00,Personal Protective Clothing,340,16.99,Arco Limited,100015,08/03/2012,10164085
Resources & Corporate Governance ,Toilet Cleaning,WBC01,Materials,303,480.6,Arco Limited,100015,22/03/2012,10164815
Resources & Corporate Governance ,Highways,WHG00,Materials,303,17.58,Arco Limited,100015,22/03/2012,10164815
Resources & Corporate Governance ,Street Cleansing,WSC00,Materials,303,44.2,Arco Limited,100015,22/03/2012,10164815
Resources & Corporate Governance ,Garage Internal,WVR01,Materials,303,126.08,Arco Limited,100015,22/03/2012,10164815
Resources & Corporate Governance,Handy man,WHM00,Personal Protective Clothing,340,35.85,Arco Limited,100015,22/03/2012,10164815
Resources & Corporate Governance ,General Financial Services,GFS00,External Contractor & Operator,742,7465,Audit Commission,100020,15/03/2012,10164399
Sustainable Environment,Regulatory Services,REG00,Subscriptions,421,1170,Aea Technology plc,100050,15/03/2012,10164536
Housing Revenue Account ,Unplanned Maintenance and Repair,UMR00,R&M External Contractors,100,1140.91,AWM Electrical Contractors Ltd,100051,01/03/2012,10164017
Capital Program ,Rewiring,HCE20,Capital Contract Payments,5000,1613,AWM Electrical Contractors Ltd,100051,22/03/2012,10164868
Housing Revenue Account ,Unplanned Maintenance and Repair,UMR00,R&M External Contractors,100,1296.42,AWM Electrical Contractors Ltd,100051,29/03/2012,10165342
Housing Revenue Account ,Unplanned Maintenance and Repair,UMR00,R&M External Contractors,100,537.8,Andy Woods Landscapes,100078,08/03/2012,10164292
Housing Revenue Account ,Unplanned Maintenance and Repair,UMR00,R&M External Contractors,100,847.93,Andy Woods Landscapes,100078,29/03/2012,10165423
Capital Program ,Kitchen Modifications,HIK10,Capital Contract Payments,5000,11202.07,A C E Carpentry & Joinery Contractors Ltd,100085,08/03/2012,10163547
Capital Program ,Kitchen Modifications,HIK10,Capital Contract Payments,5000,1034.04,A C E Carpentry & Joinery Contractors Ltd,100085,08/03/2012,10163909
Capital Program ,Kitchen Modifications,HIK10,Capital Contract Payments,5000,20680.74,A C E Carpentry & Joinery Contractors Ltd,100085,08/03/2012,10163910
Capital Program ,Kitchen Modifications,HIK10,Capital Contract Payments,5000,1378.72,A C E Carpentry & Joinery Contractors Ltd,100085,01/03/2012,10164018
Capital Program ,Kitchen Modifications,HIK10,Capital Contract Payments,5000,11489.3,A C E Carpentry & Joinery Contractors Ltd,100085,15/03/2012,10164194
Capital Program ,Kitchen Modifications,HIK10,Capital Contract Payments,5000,11489.3,A C E Carpentry & Joinery Contractors Ltd,100085,22/03/2012,10164634
Capital Program ,Kitchen Modifications,HIK10,Capital Contract Payments,5000,11489.3,A C E Carpentry & Joinery Contractors Ltd,100085,29/03/2012,10165148
Resources & Corporate Governance ,Grounds Maintenance,WGM00,Materials,303,1912.5,Banks Amenity Products Ltd,100133,01/03/2012,10163706
Resources & Corporate Governance ,Grounds Maintenance,WGM00,Materials,303,1912.5,Banks Amenity Products Ltd,100133,01/03/2012,10163809
Economy Development & Culture,Car Parks General,CPK01,R&M External Contractors,100,102,Cale Briparc Ltd,100158,29/03/2012,10165327
Economy Development & Culture,Decrim. of Car Parking on street parking,DPE02,R&M External Contractors,100,408,Cale Briparc Ltd,100158,29/03/2012,10165327
Resources & Corporate Governance ,Council Tax and NNDR Collection,CTX01,External Contractor & Operator,742,46.5,Bristow & Sutor,100159,22/03/2012,10165022
Housing Revenue Account ,Avon Court AP,AGP02,Gas,131,520.16,British Gas Business,100217,01/03/2012,10163465
Sustainable Environment ,Caldecott Park/Town Centre Area,PKS00,Gas,131,217.5,British Gas Business,100217,01/03/2012,10163596
Resources & Corporate Governance ,WSU Depot,WDP00,Gas,131,217.5,British Gas Business,100217,01/03/2012,10163596
Housing Revenue Account ,Unplanned Maintenance and Repair,UMR00,R&M External Contractors,100,1635.54,Bowen Builders,100241,01/03/2012,10163748
Capital Program ,Disabled Adaptations,HCR01,Capital Contract Payments,5000,17.61,Bowen Builders,100241,01/03/2012,10163748
Housing Revenue Account ,Unplanned Maintenance and Repair,UMR00,R&M External Contractors,100,1844.21,Bowen Builders,100241,01/03/2012,10163749
Capital Program ,Disabled Adaptations,HCR01,Capital Contract Payments,5000,83.68,Bowen Builders,100241,01/03/2012,10163749
Housing Revenue Account ,Unplanned Maintenance and Repair,UMR00,R&M External Contractors,100,305.46,Bowen Builders,100241,01/03/2012,10163883
Capital Program ,Disabled Adaptations,HCR01,Capital Contract Payments,5000,1287,Bowen Builders,100241,01/03/2012,10163883
Housing Revenue Account ,Unplanned Maintenance and Repair,UMR00,R&M External Contractors,100,2129.25,Bowen Builders,100241,08/03/2012,10164014
Housing Revenue Account ,Sheltered Housing Team,MAN21,Estates,457,338,Bowen Builders,100241,08/03/2012,10164014
Housing Revenue Account ,Unplanned Maintenance and Repair,UMR00,R&M External Contractors,100,970,Bowen Builders,100241,08/03/2012,10164137
Housing Revenue Account ,Unplanned Maintenance and Repair,UMR00,R&M External Contractors,100,643.23,Bowen Builders,100241,08/03/2012,10164295
Housing Revenue Account ,Duffy Place AP,AGP04,New Equipment,300,113.29,Bowen Builders,100241,08/03/2012,10164295
Capital Program ,Disabled Adaptations,HCR01,Capital Contract Payments,5000,41.84,Bowen Builders,100241,08/03/2012,10164295
Housing Revenue Account ,Unplanned Maintenance and Repair,UMR00,R&M External Contractors,100,2074.09,Bowen Builders,100241,08/03/2012,10164326
Housing Revenue Account ,Eliot Court AP,AGP25,New Equipment,300,52.83,Bowen Builders,100241,08/03/2012,10164326
Capital Program ,Disabled Adaptations,HCR01,Capital Contract Payments,5000,92.31,Bowen Builders,100241,08/03/2012,10164326
Housing Revenue Account ,Unplanned Maintenance and Repair,UMR00,R&M External Contractors,100,970,Bowen Builders,100241,15/03/2012,10164430
Housing Revenue Account ,Unplanned Maintenance and Repair,UMR00,R&M External Contractors,100,1082.4,Bowen Builders,100241,22/03/2012,10164733
Capital Program ,Disabled Adaptations,HCR01,Capital Contract Payments,5000,114.52,Bowen Builders,100241,22/03/2012,10164733
Housing Revenue Account ,Unplanned Maintenance and Repair,UMR00,R&M External Contractors,100,1447.09,Bowen Builders,100241,29/03/2012,10165132
Capital Program ,Disabled Adaptations,HCR01,Capital Contract Payments,5000,35.22,Bowen Builders,100241,29/03/2012,10165132
Housing Revenue Account ,Unplanned Maintenance and Repair,UMR00,R&M External Contractors,100,764.81,Bowen Builders,100241,29/03/2012,10165344
Resources & Corporate Governance,Corporate Property R&M,CPA01,R&M External Contractors,100,1730,Barron McCann Ltd,100248,29/03/2012,10165109
Resources & Corporate Governance ,Domestic Waste Collection,WWC00,Vehicle Repair and Maintenance,200,25.72,Carwood Motor Units Ltd,100300,15/03/2012,10164239
Resources & Corporate Governance ,Trade Waste Collection,WWC01,Vehicle Repair and Maintenance,200,37.84,Carwood Motor Units Ltd,100300,15/03/2012,10164239
Resources & Corporate Governance ,Garage Internal,WVR01,Materials,303,399.54,Carwood Motor Units Ltd,100300,15/03/2012,10164239
Resources & Corporate Governance,Corporate Property R&M,CPA01,R&M External Contractors,100,977.2,Chillaire Service & Maintenance Ltd,100305,08/03/2012,10163897
Resources & Corporate Governance,Corporate Property R&M,CPA01,R&M External Contractors,100,1041.02,Chillaire Service & Maintenance Ltd,100305,22/03/2012,10164506
Resources & Corporate Governance ,Support Services,CIS20,Training fees,11,700,Coventry University,100321,29/03/2012,10164459
Resources & Corporate Governance ,Financial Services,RES10,Training fees,11,1610,Cipfa,100349,29/03/2012,10165332
Economy Development & Culture,Economic Development General,ECD00,Development Activities,450,710,Coventry & Warwickshire Chamber Of Commerce,100412,29/03/2012,10164864
Sustainable Environment ,Clinical Waste,REF04,External Contractor & Operator,742,558.95,OCS Group UK Ltd t/a Cannon,100436,22/03/2012,10164474
Resources & Corporate Governance,Central Business Support Services,CSS15,Photocopying,354,1017.92,Canon (UK) Limited,100514,01/03/2012,10163891
Resources & Corporate Governance ,Domestic Waste Collection,WWC00,Vehicle Repair and Maintenance,200,457.9,Dennis Eagle Ltd,100559,01/03/2012,10163700
Resources & Corporate Governance ,Trade Waste Collection,WWC01,Vehicle Repair and Maintenance,200,108.97,Dennis Eagle Ltd,100559,01/03/2012,10163700
Resources & Corporate Governance,Corporate Property R&M,CPA01,R&M External Contractors,100,500,Dunchurch Services (Rugby) Ltd,100565,08/03/2012,10163814
Capital Program ,Kitchen Modifications,HIK10,Capital Contract Payments,5000,13308.75,JADA Building & Maintenance Services Ltd,100583,08/03/2012,10163482
Capital Program ,Kitchen Modifications,HIK10,Capital Contract Payments,5000,2309.19,JADA Building & Maintenance Services Ltd,100583,08/03/2012,10163642
Housing Revenue Account ,Unplanned Maintenance and Repair,UMR00,R&M External Contractors,100,5682.65,JADA Building & Maintenance Services Ltd,100583,01/03/2012,10163875
Capital Program ,Disabled Adaptations,HCR01,Capital Contract Payments,5000,16.62,JADA Building & Maintenance Services Ltd,100583,01/03/2012,10163875
Capital Program ,Kitchen Modifications,HIK10,Capital Contract Payments,5000,20475,JADA Building & Maintenance Services Ltd,100583,08/03/2012,10163898
Housing Revenue Account ,Unplanned Maintenance and Repair,UMR00,R&M External Contractors,100,5937.78,JADA Building & Maintenance Services Ltd,100583,08/03/2012,10164327
Housing Revenue Account ,Property Maintenance,MAN23,Estates,457,43.98,JADA Building & Maintenance Services Ltd,100583,08/03/2012,10164327
Housing Revenue Account ,Unplanned Maintenance and Repair,UMR00,R&M External Contractors,100,3625.61,JADA Building & Maintenance Services Ltd,100583,29/03/2012,10165129
Housing Revenue Account ,Unplanned Maintenance and Repair,UMR00,R&M External Contractors,100,1328.84,JADA Building & Maintenance Services Ltd,100583,29/03/2012,10165130
Housing Revenue Account ,Unplanned Maintenance and Repair,UMR00,R&M External Contractors,100,1171.96,Lee Davies Decorating,100600,01/03/2012,10163751
Housing Revenue Account ,Repainting Schemes,UMR02,R&M External Contractors,100,2133.36,Lee Davies Decorating,100600,01/03/2012,10163751
Housing Revenue Account ,Unplanned Maintenance and Repair,UMR00,R&M External Contractors,100,779.51,Lee Davies Decorating,100600,15/03/2012,10164449
Housing Revenue Account ,Repainting Schemes,UMR02,R&M External Contractors,100,2133.36,Lee Davies Decorating,100600,15/03/2012,10164449
Housing Revenue Account ,Unplanned Maintenance and Repair,UMR00,R&M External Contractors,100,309.1,Lee Davies Decorating,100600,29/03/2012,10165424
Housing Revenue Account ,Repainting Schemes,UMR02,R&M External Contractors,100,2400.03,Lee Davies Decorating,100600,29/03/2012,10165424
Housing Revenue Account ,Tanser Court AP,AGP17,Gas,131,3402.68,ESPO,100641,01/03/2012,10163259
Housing Revenue Account ,Lesley Souter House AP,AGP16,Gas,131,1525.89,ESPO,100641,15/03/2012,10163260
Economy Development & Culture,The Benn Hall,BHL00,Gas,131,338.18,ESPO,100641,01/03/2012,10163469
Resources & Corporate Governance ,Town Hall,OFF00,Gas,131,2555.13,ESPO,100641,01/03/2012,10163469
Resources & Corporate Governance ,The Lawn,OFF01,Gas,131,413.33,ESPO,100641,01/03/2012,10163469
Resources & Corporate Governance ,The Retreat,OFF02,Gas,131,450.91,ESPO,100641,01/03/2012,10163469
Economy Development & Culture,The Benn Hall,BHL00,Gas,131,242.86,ESPO,100641,01/03/2012,10163470
Resources & Corporate Governance ,Town Hall,OFF00,Gas,131,1834.97,ESPO,100641,01/03/2012,10163470
Resources & Corporate Governance ,The Lawn,OFF01,Gas,131,296.83,ESPO,100641,01/03/2012,10163470
Resources & Corporate Governance ,The Retreat,OFF02,Gas,131,323.82,ESPO,100641,01/03/2012,10163470
Economy Development & Culture,The Benn Hall,BHL00,Gas,131,167.6,ESPO,100641,01/03/2012,10163471
Resources & Corporate Governance ,Town Hall,OFF00,Gas,131,1266.35,ESPO,100641,01/03/2012,10163471
Resources & Corporate Governance ,The Lawn,OFF01,Gas,131,204.85,ESPO,100641,01/03/2012,10163471
Resources & Corporate Governance ,The Retreat,OFF02,Gas,131,223.47,ESPO,100641,01/03/2012,10163471
Resources & Corporate Governance ,WSU Depot,WDP00,Gas,131,1983.59,ESPO,100641,15/03/2012,10164562
Housing Revenue Account ,Tanser Court AP,AGP17,Gas,131,1836.67,ESPO,100641,29/03/2012,10164577
Housing Revenue Account ,Lesley Souter House AP,AGP16,Gas,131,1553.87,ESPO,100641,22/03/2012,10164578
Housing Revenue Account ,Albert Square AP,AGP20,Gas,131,2713.62,ESPO,100641,22/03/2012,10164579
Resources & Corporate Governance ,WSU Depot,WDP00,Gas,131,921.1,ESPO,100641,29/03/2012,10164639
Economy Development & Culture,The Benn Hall,BHL00,Gas,131,346.77,ESPO,100641,22/03/2012,10164752
Resources & Corporate Governance ,Town Hall,OFF00,Gas,131,2620.06,ESPO,100641,22/03/2012,10164752
Resources & Corporate Governance ,The Lawn,OFF01,Gas,131,423.83,ESPO,100641,22/03/2012,10164752
Resources & Corporate Governance ,The Retreat,OFF02,Gas,131,462.36,ESPO,100641,22/03/2012,10164752
Economy Development & Culture,Art Gallery and Museum,AGM00,Gas,131,810.07,ESPO,100641,22/03/2012,10164784
Resources & Corporate Governance ,Domestic Waste Collection,WWC00,Materials,303,740,Container Services UK Limited,100811,22/03/2012,10164540
Resources & Corporate Governance ,General Administration,WAD00,Professional Subscriptions,17,646,Freight Transport Association,100830,29/03/2012,10164523
,Balance Sheet,BS,Car Leasing Scheme,9244,-483,Lex Autolease Ltd,100844,15/03/2012,10164320
,Balance Sheet,BS,Car Leasing Scheme,9244,2618.75,Lex Autolease Ltd,100844,15/03/2012,10164421
,Balance Sheet,BS,Car Leasing Scheme,9244,4352.41,Lex Autolease Ltd,100844,15/03/2012,10164422
,Balance Sheet,BS,Car Leasing Scheme,9244,4690.39,Lex Autolease Ltd,100844,15/03/2012,10164423
,Balance Sheet,BS,Car Leasing Scheme,9244,6145.68,Lex Autolease Ltd,100844,15/03/2012,10164424
,Balance Sheet,BS,Car Leasing Scheme,9244,3349.79,Lex Autolease Ltd,100844,29/03/2012,10165173
Resources & Corporate Governance ,Maintenance of Customer Services Systems,CIS21,Software Maintenance,374,3760.42,Figtree Systems (Europe) Ltd,100852,29/03/2012,10164508
Resources & Corporate Governance ,Customer and Information Strategy,CIS10,Software Maintenance,374,2080,Fast Corporate Services Ltd,100853,08/03/2012,10164325
Resources & Corporate Governance ,Town Hall,OFF00,Materials,303,663.2,Greenham,100890,01/03/2012,10163550
Resources & Corporate Governance ,Town Hall,OFF00,Materials,303,578,Greenham,100890,15/03/2012,10163858
Housing Revenue Account ,Estate Management,MAN22,Movement Incentives,454,520,David Gilkes & Sons Ltd,100913,01/03/2012,10163698
Housing Revenue Account ,Estate Management,MAN22,Movement Incentives,454,480,David Gilkes & Sons Ltd,100913,08/03/2012,10164050
Housing Revenue Account ,Estate Management,MAN22,Movement Incentives,454,510,David Gilkes & Sons Ltd,100913,08/03/2012,10164073
Resources & Corporate Governance ,Human Resources Centralised Services,RES31,Recruitment Expenses,12,1084.18,TMP (UK) LTD,100972,01/03/2012,10163211
Resources & Corporate Governance ,Human Resources Centralised Services,RES31,Recruitment Expenses,12,916.5,TMP (UK) LTD,100972,15/03/2012,10164065
Resources & Corporate Governance,Corporate Property R&M,CPA01,R&M External Contractors,100,532.5,ThyssenKrupp Elevator UK,100985,15/03/2012,10164452
Capital Program ,Bathroom Modifications,HIS01,Capital Contract Payments,5000,18800,B Hartwell Plumbers Ltd,100989,01/03/2012,10163486
Housing Revenue Account ,Unplanned Maintenance and Repair,UMR00,R&M External Contractors,100,1755.62,B Hartwell Plumbers Ltd,100989,01/03/2012,10164016
Capital Program ,Bathroom Modifications,HIS01,Capital Contract Payments,5000,18800,B Hartwell Plumbers Ltd,100989,22/03/2012,10164495
Housing Revenue Account ,Unplanned Maintenance and Repair,UMR00,R&M External Contractors,100,827,B Hartwell Plumbers Ltd,100989,22/03/2012,10164726
Capital Program ,Disabled Adaptations,HCR01,Capital Contract Payments,5000,4503.99,B Hartwell Plumbers Ltd,100989,22/03/2012,10164726
Sustainable Environment,Regulatory Services,REG00,Subscriptions,421,480,C.I.E.H,101121,29/03/2012,10165176
Resources & Corporate Governance ,Customer and Information Strategy,CIS10,Hardware Maintenance,376,1650,Insite Ltd,101144,01/03/2012,10163920
Resources & Corporate Governance ,Maintenance of Customer Services Systems,CIS21,Software Maintenance,374,735,Improvement & Development Agency,101151,29/03/2012,10164558
Resources & Corporate Governance ,Grounds Maintenance,WGM00,Materials,303,2289.55,James Coles & Sons (Nurseries) Ltd,101165,08/03/2012,10164128
Resources & Corporate Governance ,Grounds Maintenance,WGM00,Materials,303,2380.25,James Coles & Sons (Nurseries) Ltd,101165,29/03/2012,10165035
Resources & Corporate Governance ,Grounds Maintenance,WGM00,Materials,303,685.4,James Coles & Sons (Nurseries) Ltd,101165,29/03/2012,10165051
Resources & Corporate Governance ,Legal Services,DEM20,Training fees,11,430,LGG,101244,22/03/2012,10164560
Housing Revenue Account ,Repainting Schemes,UMR02,R&M External Contractors,100,2304.66,MBG Decorators (Rugby Ltd),101288,01/03/2012,10163880
Housing Revenue Account ,Repainting Schemes,UMR02,R&M External Contractors,100,3102.33,MBG Decorators (Rugby Ltd),101288,15/03/2012,10164447
Resources & Corporate Governance,Handy man,WHM00,External Contractor & Operator,742,700,MBG Decorators (Rugby Ltd),101288,29/03/2012,10164984
Resources & Corporate Governance,Handy man,WHM00,External Contractor & Operator,742,650,MBG Decorators (Rugby Ltd),101288,29/03/2012,10164985
Housing Revenue Account ,Repainting Schemes,UMR02,R&M External Contractors,100,5603.3,MBG Decorators (Rugby Ltd),101288,29/03/2012,10165127
Resources & Corporate Governance,Housing Fencing,WFE00,Materials,303,524.32,Melbros Ltd,101291,01/03/2012,10162977
Resources & Corporate Governance ,Highways,WHG00,Materials,303,119.8,Melbros Ltd,101291,01/03/2012,10162977
Resources & Corporate Governance,Handy man,WHM00,Materials,303,3081.02,Melbros Ltd,101291,01/03/2012,10162977
Resources & Corporate Governance,Handy man,WHM00,Tools,304,89.98,Melbros Ltd,101291,01/03/2012,10162977
Resources & Corporate Governance ,WSU Depot,WDP00,Messing Facilities,332,50.76,Melbros Ltd,101291,01/03/2012,10162977
Resources & Corporate Governance,Handy man,WHM00,Materials,303,4430.79,Melbros Ltd,101291,22/03/2012,10164260
Resources & Corporate Governance ,WSU Depot,WDP00,Messing Facilities,332,550,Melbros Ltd,101291,22/03/2012,10164260
Resources & Corporate Governance,Handy man,WHM00,Vehicle Repair and Maintenance,200,746.63,Noden Truck Centre Ltd,101368,01/03/2012,10163709
Resources & Corporate Governance ,Grounds Maintenance,WGM00,Materials,303,1392,Nomix Enviro Ltd,101369,29/03/2012,10165251
Capital Program ,Asset Management System,AMS00,IT Capital Expenditure,5025,600,Ncc Services Limited,101374,29/03/2012,10165497
Economy Development & Culture,Visitor Centre,VSC00,Events Tickets - Zero Rated,1405,1237.47,National Express Ltd,101392,08/03/2012,10164062
Capital Program ,RG Disabled Facilities,REN01,Capital Grants,5014,1114.02,Heart of England Housing Association,101400,15/03/2012,10164321
Resources & Corporate Governance ,Housing Carpentry & Joinery,WCJ00,Vehicle Running Costs,201,420,Post Office Ltd,101429,15/03/2012,10164467
Resources & Corporate Governance ,Street Cleansing,WSC00,Vehicle Running Costs,201,165,Post Office Ltd,101429,15/03/2012,10164467
Resources & Corporate Governance ,Domestic Waste Collection,WWC00,Vehicle Running Costs,201,238,Post Office Ltd,101429,15/03/2012,10164467
Economy Development & Culture,Sports and Recreation,LSD03,Vehicle Running Costs,201,165,Post Office Ltd,101429,22/03/2012,10164789
Sustainable Environment,Regulatory Services,REG00,Vehicle Running Costs,201,420,Post Office Ltd,101429,22/03/2012,10164789
Resources & Corporate Governance ,Domestic Waste Collection,WWC00,Vehicle Running Costs,201,650,Post Office Ltd,101429,22/03/2012,10164789
Resources & Corporate Governance ,Trade Waste Collection,WWC01,Vehicle Running Costs,201,650,Post Office Ltd,101429,22/03/2012,10164789
Sustainable Environment ,Caldecott Park/Town Centre Area,PKS00,R&M External Contractors,100,512.52,PJT Pumping Services,101438,01/03/2012,10163816
Sustainable Inclusive Communities,Sewage Disposal Plant,SDP00,R&M External Contractors,100,520.28,PJT Pumping Services,101438,01/03/2012,10163817
Sustainable Inclusive Communities,Sewage Disposal Plant,SDP00,R&M External Contractors,100,520.28,PJT Pumping Services,101438,08/03/2012,10164274
Sustainable Inclusive Communities,Woodside Park,TVR00,Electricity,130,3233.04,E.ON,101479,22/03/2012,10164072
Sustainable Inclusive Communities,Woodside Park,TVR00,Electricity,130,4085.04,E.ON,101479,29/03/2012,10164649
Resources & Corporate Governance ,Brownsover Community Centre,CPM01,Gas,131,948.38,E.ON,101479,29/03/2012,10165121
Sustainable Environment ,Play Areas,PKS07,Maintenance of Equipment,301,125,Post To Post Fencing,101490,22/03/2012,10164928
Capital Program ,Open Spaces Refurbishment,LEI08,Capital Contract Payments,5000,450,Post To Post Fencing,101490,22/03/2012,10164928
Housing Revenue Account ,Unplanned Maintenance and Repair,UMR00,R&M External Contractors,100,792,Reeds Plumbing & Heating Contractors Ltd,101504,01/03/2012,10163882
Capital Program ,Kitchen Modifications,HIK10,Capital Contract Payments,5000,27600,Reeds Plumbing & Heating Contractors Ltd,101504,08/03/2012,10163899
Capital Program ,Kitchen Modifications,HIK10,Capital Contract Payments,5000,1494.41,Reeds Plumbing & Heating Contractors Ltd,101504,08/03/2012,10164061
Capital Program ,RG Disabled Facilities,REN01,Capital Grants,5014,3615,Reeds Plumbing & Heating Contractors Ltd,101504,15/03/2012,10164179
Housing Revenue Account ,Unplanned Maintenance and Repair,UMR00,R&M External Contractors,100,2640,Reeds Plumbing & Heating Contractors Ltd,101504,08/03/2012,10164183
Housing Revenue Account ,Unplanned Maintenance and Repair,UMR00,R&M External Contractors,100,1403.79,Reeds Plumbing & Heating Contractors Ltd,101504,22/03/2012,10164725
Capital Program ,Kitchen Modifications,HIK10,Capital Contract Payments,5000,11500,Reeds Plumbing & Heating Contractors Ltd,101504,29/03/2012,10164875
Housing Revenue Account ,Unplanned Maintenance and Repair,UMR00,R&M External Contractors,100,5324,Reeds Plumbing & Heating Contractors Ltd,101504,29/03/2012,10165124
Capital Program ,Disabled Adaptations,HCR01,Capital Contract Payments,5000,1583.58,Reeds Plumbing & Heating Contractors Ltd,101504,29/03/2012,10165124
Housing Revenue Account ,Unplanned Maintenance and Repair,UMR00,R&M External Contractors,100,3760.74,Reeds Plumbing & Heating Contractors Ltd,101504,29/03/2012,10165422
Capital Program ,Disabled Adaptations,HCR01,Capital Contract Payments,5000,675,Reeds Plumbing & Heating Contractors Ltd,101504,29/03/2012,10165422
Resources & Corporate Governance ,Garage Internal,WVR01,Materials,303,680.4,Rencar Services,101505,08/03/2012,10163704
Sustainable Inclusive Communities,Woodside Park,TVR00,Council Tax,142,751.36,Rugby Borough Council,101516,08/03/2012,10163592
Sustainable Inclusive Communities,Woodside Park,TVR00,Council Tax,142,773.21,Rugby Borough Council,101516,22/03/2012,10164885
Sustainable Inclusive Communities,Woodside Park,TVR00,Council Tax,142,773.21,Rugby Borough Council,101516,22/03/2012,10164886
,User Balance Sheet Cost Centre,BSU,Section Agreements,9865,1567.76,Ryton-On-Dunsmore Parish Council,101522,15/03/2012,10164392
Economy Development & Culture,Art Gallery and Museum,AGM00,Postage & Distribution,370,3.08,Royal Mail,101554,22/03/2012,10162739
Economy Development & Culture,Building Control Services,BCS00,Postage & Distribution,370,3.28,Royal Mail,101554,22/03/2012,10162739
Economy Development & Culture,Building Regulation Fee Earning Account,BCS99,Postage & Distribution,370,4.34,Royal Mail,101554,22/03/2012,10162739
Economy Development & Culture,Car Parks General,CPK01,Postage & Distribution,370,9.55,Royal Mail,101554,22/03/2012,10162739
Resources & Corporate Governance,Central Business Support Services,CSS15,Postage & Distribution,370,684.3,Royal Mail,101554,22/03/2012,10162739
Resources & Corporate Governance ,Council Tax and NNDR Collection,CTX01,Postage & Distribution,370,262.84,Royal Mail,101554,22/03/2012,10162739
Economy Development & Culture,Decrim. of Car Parking on street parking,DPE02,Postage & Distribution,370,38.18,Royal Mail,101554,22/03/2012,10162739
Resources & Corporate Governance ,Electoral Registration,ERG00,Postage & Distribution,370,6.24,Royal Mail,101554,22/03/2012,10162739
Sustainable Inclusive Communities,Housing Benefit Administration,HBA00,Postage & Distribution,370,69.71,Royal Mail,101554,22/03/2012,10162739
Housing Revenue Account ,Supervision and Management General,MAN00,Postage & Distribution,370,45.76,Royal Mail,101554,22/03/2012,10162739
Economy Development & Culture,Planning General/Income,PLN00,Postage & Distribution,370,54.77,Royal Mail,101554,22/03/2012,10162739
Resources & Corporate Governance ,General Administration,WAD00,Postage & Distribution,370,15.59,Royal Mail,101554,22/03/2012,10162739
Economy Development & Culture,Art Gallery and Museum,AGM00,Postage & Distribution,370,10.17,Royal Mail,101554,01/03/2012,10163377
Economy Development & Culture,Building Control Services,BCS00,Postage & Distribution,370,2.66,Royal Mail,101554,01/03/2012,10163377
Economy Development & Culture,Building Regulation Fee Earning Account,BCS99,Postage & Distribution,370,3.53,Royal Mail,101554,01/03/2012,10163377
Economy Development & Culture,Car Parks General,CPK01,Postage & Distribution,370,54.14,Royal Mail,101554,01/03/2012,10163377
Resources & Corporate Governance,Central Business Support Services,CSS15,Postage & Distribution,370,492.65,Royal Mail,101554,01/03/2012,10163377
Resources & Corporate Governance ,Council Tax and NNDR Collection,CTX01,Postage & Distribution,370,188.79,Royal Mail,101554,01/03/2012,10163377
Economy Development & Culture,Decrim. of Car Parking on street parking,DPE02,Postage & Distribution,370,216.56,Royal Mail,101554,01/03/2012,10163377
Resources & Corporate Governance ,Electoral Registration,ERG00,Postage & Distribution,370,46.72,Royal Mail,101554,01/03/2012,10163377
Sustainable Inclusive Communities,Housing Benefit Administration,HBA00,Postage & Distribution,370,200.66,Royal Mail,101554,01/03/2012,10163377
Housing Revenue Account ,Supervision and Management General,MAN00,Postage & Distribution,370,123.25,Royal Mail,101554,01/03/2012,10163377
Economy Development & Culture,Planning General/Income,PLN00,Postage & Distribution,370,150.78,Royal Mail,101554,01/03/2012,10163377
Economy Development & Culture,Visitor Centre,VSC00,Postage & Distribution,370,1.09,Royal Mail,101554,01/03/2012,10163377
Resources & Corporate Governance ,General Administration,WAD00,Postage & Distribution,370,66.06,Royal Mail,101554,01/03/2012,10163377
Resources & Corporate Governance,Central Business Support Services,CSS15,Postage & Distribution,370,565.64,Royal Mail,101554,01/03/2012,10163782
Economy Development & Culture,Art Gallery and Museum,AGM00,Postage & Distribution,370,1.04,Royal Mail,101554,22/03/2012,10163930
Economy Development & Culture,Building Control Services,BCS00,Postage & Distribution,370,3.65,Royal Mail,101554,22/03/2012,10163930
Economy Development & Culture,Building Regulation Fee Earning Account,BCS99,Postage & Distribution,370,4.85,Royal Mail,101554,22/03/2012,10163930
Economy Development & Culture,Car Parks General,CPK01,Postage & Distribution,370,32.19,Royal Mail,101554,22/03/2012,10163930
Resources & Corporate Governance,Central Business Support Services,CSS15,Postage & Distribution,370,447.77,Royal Mail,101554,22/03/2012,10163930
Resources & Corporate Governance ,Council Tax and NNDR Collection,CTX01,Postage & Distribution,370,121.62,Royal Mail,101554,22/03/2012,10163930
Economy Development & Culture,Decrim. of Car Parking on street parking,DPE02,Postage & Distribution,370,128.77,Royal Mail,101554,22/03/2012,10163930
Resources & Corporate Governance ,Electoral Registration,ERG00,Postage & Distribution,370,8.37,Royal Mail,101554,22/03/2012,10163930
Sustainable Inclusive Communities,Housing Benefit Administration,HBA00,Postage & Distribution,370,120.94,Royal Mail,101554,22/03/2012,10163930
Housing Revenue Account ,Supervision and Management General,MAN00,Postage & Distribution,370,202.5,Royal Mail,101554,22/03/2012,10163930
Economy Development & Culture,Planning General/Income,PLN00,Postage & Distribution,370,106.16,Royal Mail,101554,22/03/2012,10163930
Economy Development & Culture,Visitor Centre,VSC00,Postage & Distribution,370,11.65,Royal Mail,101554,22/03/2012,10163930
Resources & Corporate Governance ,General Administration,WAD00,Postage & Distribution,370,23.28,Royal Mail,101554,22/03/2012,10163930
Resources & Corporate Governance,Handy man,WHM00,External Contractor & Operator,742,2183,Rugby Plastering Services,101602,15/03/2012,10163852
Housing Revenue Account ,Unplanned Maintenance and Repair,UMR00,R&M External Contractors,100,2152.3,Rugby Plastering Services,101602,01/03/2012,10163925
Housing Revenue Account ,Unplanned Maintenance and Repair,UMR00,R&M External Contractors,100,1764.39,Rugby Plastering Services,101602,15/03/2012,10164512
Housing Revenue Account ,Unplanned Maintenance and Repair,UMR00,R&M External Contractors,100,706.8,Rugby Plastering Services,101602,29/03/2012,10165425
Resources & Corporate Governance ,WSU Depot,WDP00,Water Services,143,1060.38,Severn Trent Water Ltd,101610,15/03/2012,10163582
Housing Revenue Account ,Dickinson Court AP,AGP03,Water Services,143,541.65,Severn Trent Water Ltd,101610,08/03/2012,10164039
Housing Revenue Account ,Stretton Court AP,AGP13,Water Services,143,658.24,Severn Trent Water Ltd,101610,08/03/2012,10164043
Sustainable Inclusive Communities,Woodside Park,TVR00,Water Services,143,1272.05,Severn Trent Water Ltd,101610,08/03/2012,10164044
Housing Revenue Account ,Tanser Court AP,AGP17,Water Services,143,905.76,Severn Trent Water Ltd,101610,15/03/2012,10164053
Housing Revenue Account ,Lesley Souter House AP,AGP16,Water Services,143,1707.78,Severn Trent Water Ltd,101610,15/03/2012,10164208
Economy Development & Culture,The Benn Hall,BHL00,Water Services,143,395.8,Severn Trent Water Ltd,101610,22/03/2012,10164285
Resources & Corporate Governance ,Town Hall,OFF00,Water Services,143,1764.41,Severn Trent Water Ltd,101610,22/03/2012,10164285
Sustainable Environment ,Recreation Grounds/Open Spaces,PKS01,Water Services,143,329.82,Severn Trent Water Ltd,101610,22/03/2012,10164285
Housing Revenue Account ,Albert Square AP,AGP20,Water Services,143,1508.97,Severn Trent Water Ltd,101610,22/03/2012,10164862
Capital Program ,Parish Capital Spending Fund,CGR03,Capital Grants,5014,6452.16,Shilton Parish Council,101613,22/03/2012,10164859
Resources & Corporate Governance,Corporate Property R&M,CPA01,R&M External Contractors,100,1235,Steve Diston Contract Flooring,101668,29/03/2012,10164988
Resources & Corporate Governance,Corporate Property R&M,CPA01,R&M External Contractors,100,2018.34,Secom Plc,101671,29/03/2012,10165152
Resources & Corporate Governance ,Street Cleansing,WSC00,Vehicle Running Costs,201,207,HI-Q Motorway,101736,15/03/2012,10164259
Resources & Corporate Governance ,Domestic Waste Collection,WWC00,Vehicle Running Costs,201,390,HI-Q Motorway,101736,15/03/2012,10164259
Resources & Corporate Governance ,Garage Internal,WVR01,Vehicle Running Costs,201,54,HI-Q Motorway,101736,22/03/2012,10164935
Resources & Corporate Governance ,Domestic Waste Collection,WWC00,Vehicle Running Costs,201,208.5,HI-Q Motorway,101736,22/03/2012,10164935
Resources & Corporate Governance ,Trade Waste Collection,WWC01,Vehicle Running Costs,201,266.65,HI-Q Motorway,101736,22/03/2012,10164935
Resources & Corporate Governance ,Domestic Waste Collection,WWC00,Materials,303,3676.8,Egbert H. Taylor & Co Ltd,101741,15/03/2012,10164384
Resources & Corporate Governance ,Domestic Waste Collection,WWC00,Materials,303,592,Egbert H. Taylor & Co Ltd,101741,29/03/2012,10164666
Resources & Corporate Governance ,Domestic Waste Collection,WWC00,Vehicle Repair and Maintenance,200,545.97,Terberg Matec Uk,101761,22/03/2012,10164471
Resources & Corporate Governance ,Highways,WHG00,Vehicle Repair and Maintenance,200,463,Transloader Services,101766,22/03/2012,10164808
Sustainable Environment ,Communities Against Drugs,CAD00,Development Activities,450,2000,Warwickshire County Council,101840,01/03/2012,10163647
Sustainable Environment ,Violence,CAD01,Development Activities,450,3010,Warwickshire Police Authority,101869,15/03/2012,10164504
Sustainable Environment ,Communities Against Drugs,CAD00,Development Activities,450,625.53,Warwickshire Police Authority,101869,22/03/2012,10164746
Housing Revenue Account ,Property Maintenance,MAN23,Consultancy Costs,740,535.2,West Midlands Councils,101880,15/03/2012,10164035
Economy Development & Culture,AGM Education,AGM03,Other Miscellaneous Expenses,444,500,Warwickshire College,101882,29/03/2012,10165183
Resources & Corporate Governance ,General Administration,WAD00,Training fees,11,695,Warwickshire College,101882,29/03/2012,10165323
Resources & Corporate Governance ,General Administration,WAD00,Training fees,11,695,Warwickshire College,101882,29/03/2012,10165326
Resources & Corporate Governance,Customer Support Services,CSS00,Fees & Charges - Zero Rated,1401,630,Warwickshire County Council,101893,22/03/2012,10163926
Economy Development & Culture,Planning General/Income,PLN00,Consultancy Costs,740,5050,Warwickshire County Council,101893,08/03/2012,10164130
Housing Revenue Account ,Unplanned Maintenance and Repair,UMR00,R&M External Contractors,100,3837.65,Warwickshire County Council,101893,29/03/2012,10164395
Economy Development & Culture,Art Gallery and Museum,AGM00,Contract Cleaning,170,1868.84,Warwickshire County Council,101893,15/03/2012,10164443
Resources & Corporate Governance ,"Communications, Consultation and Information Team",BTR20,Payments to Other Local Authorities,710,21000,Warwickshire County Council,101893,29/03/2012,10165182
Resources & Corporate Governance ,Occupational Health and Welfare,OHW00,Employee wellbeing/Other employee expenses,21,1102,University Hospitals Coventry & Warks NHS Trust,101898,15/03/2012,10164289
Resources & Corporate Governance,Handy man,WHM00,External Contractor & Operator,742,2821,Darren Wilson Roofing Ltd,101911,22/03/2012,10164658
Capital Program ,Heating Upgrades,HIM01,Capital Contract Payments,5000,1570.33,Adroit Services Ltd,101939,01/03/2012,10163483
Capital Program ,Heating Upgrades,HIM01,Capital Contract Payments,5000,919.92,Adroit Services Ltd,101939,01/03/2012,10163484
Capital Program ,Heating Upgrades,HIM01,Capital Contract Payments,5000,7363.05,Adroit Services Ltd,101939,01/03/2012,10163546
Capital Program ,Heating Upgrades,HIM01,Capital Contract Payments,5000,2163.43,Adroit Services Ltd,101939,22/03/2012,10163907
Capital Program ,Bathroom Modifications,HIS01,Capital Contract Payments,5000,2163.43,Adroit Services Ltd,101939,22/03/2012,10163908
Resources & Corporate Governance,Handy man,WHM00,External Contractor & Operator,742,812.35,Adroit Services Ltd,101939,08/03/2012,10164187
Capital Program ,Heating Upgrades,HIM01,Capital Contract Payments,5000,11253.53,Adroit Services Ltd,101939,22/03/2012,10164497
Housing Revenue Account ,Unplanned Maintenance and Repair,UMR00,R&M External Contractors,100,64.09,Adroit Services Ltd,101939,22/03/2012,10164866
Capital Program ,Heating Upgrades,HIM01,Capital Contract Payments,5000,2163.48,Adroit Services Ltd,101939,22/03/2012,10164866
Capital Program ,Heating Upgrades,HIM01,Capital Contract Payments,5000,4763.24,Adroit Services Ltd,101939,29/03/2012,10164965
Resources & Corporate Governance ,Highways,WHG00,Materials,303,382.76,BURDENS LTD,102070,01/03/2012,10163526
Resources & Corporate Governance,Handy man,WHM00,Materials,303,83.16,BURDENS LTD,102070,01/03/2012,10163526
Resources & Corporate Governance,Housing Drainage,WDR00,Materials,303,75,BURDENS LTD,102070,29/03/2012,10165212
Resources & Corporate Governance,Housing Fencing,WFE00,Materials,303,420,BURDENS LTD,102070,29/03/2012,10165212
Resources & Corporate Governance ,Highways,WHG00,Materials,303,620,BURDENS LTD,102070,29/03/2012,10165212
Capital Program ,Open Spaces Refurbishment,LEI08,Capital Contract Payments,5000,1440,Furnitubes International Ltd,102084,01/03/2012,10163901
Resources & Corporate Governance ,Maintenance of Customer Services Systems,CIS21,Software Maintenance,374,4051.89,INTEC Public Sector,107408,29/03/2012,10164129
Resources & Corporate Governance ,"Communications, Consultation and Information Team",BTR20,Publicity & Marketing,377,865.51,Johnston Publishing Ltd,107468,08/03/2012,10164169
Resources & Corporate Governance ,"Communications, Consultation and Information Team",BTR20,Publicity & Marketing,377,551.52,Johnston Publishing Ltd,107468,08/03/2012,10164257
Resources & Corporate Governance ,Street Cleansing,WSC00,Contract Hire,220,460,TJS Self Drive Rugby,107992,08/03/2012,10164080
Housing Revenue Account ,Unplanned Maintenance and Repair,UMR00,R&M External Contractors,100,2519,Ser-Tec Systems Ltd,108074,15/03/2012,10163019
Resources & Corporate Governance,Corporate Property R&M,CPA01,R&M External Contractors,100,4995,Ser-Tec Systems Ltd,108074,01/03/2012,10163404
Resources & Corporate Governance ,Street Cleansing,WSC00,Vehicle Repair and Maintenance,200,606.3,Scarab Sweepers Ltd,108252,15/03/2012,10164171
Resources & Corporate Governance ,Central Telephone Service,TEL00,Telephone Expenses,371,971.42,British Telecommunications PLC,108425,01/03/2012,10163725
Resources & Corporate Governance ,Central Telephone Service,TEL00,Telephone Expenses,371,576,British Telecommunications PLC,108425,29/03/2012,10165122
Sustainable Environment ,Communities Against Drugs,CAD00,Development Activities,450,4000,CSWP Ltd,109679,22/03/2012,10164863
Sustainable Environment,Regulatory Services,REG00,External Contractor & Operator,742,662,Natural Environment Research Council,110210,15/03/2012,10164547
Resources & Corporate Governance ,Garage Internal,WVR01,Materials,303,34576.15,Watson Petroleum,110361,01/03/2012,10163719
Resources & Corporate Governance ,Garage Internal,WVR01,Materials,303,25927,Watson Petroleum,110361,29/03/2012,10165107
Resources & Corporate Governance ,Garage Internal,WVR01,Materials,303,5911.36,Watson Petroleum,110361,29/03/2012,10165108
Economy Development & Culture,AGM Conservation/Documentation,AGM01,Other Miscellaneous Expenses,444,529,Andrew Varah,110362,29/03/2012,10165047
Resources & Corporate Governance,Corporate Property R&M,CPA01,R&M External Contractors,100,465.09,Croxford Electrical,110451,29/03/2012,10165456
Resources & Corporate Governance,Corporate Property R&M,CPA01,R&M External Contractors,100,749.04,Croxford Electrical,110451,29/03/2012,10165502
Resources & Corporate Governance,Customer Support Services,CSS00,Payments to Other Local Authorities,710,13292.49,Warwick District Council,111228,29/03/2012,10165428
Resources & Corporate Governance ,Domestic Waste Collection,WWC00,Vehicle Running Costs,201,280,DVLA,111540,22/03/2012,10164790
Resources & Corporate Governance ,Trade Waste Collection,WWC01,Vehicle Running Costs,201,280,DVLA,111540,22/03/2012,10164790
Economy Development & Culture,Active Lifestyles,LSD08,Development Activities,450,2000,Rugby & Northampton Athletic Club,112392,29/03/2012,10165167
Economy Development & Culture,Active Lifestyles,LSD08,Development Activities,450,720,Rugby & Northampton Athletic Club,112392,29/03/2012,10165168
Resources & Corporate Governance ,Maintenance of Customer Services Systems,CIS21,Software Maintenance,374,1400,Civica UK Ltd,112724,01/03/2012,10163696
Resources & Corporate Governance ,Maintenance of Customer Services Systems,CIS21,Software Maintenance,374,5085,Civica UK Ltd,112724,29/03/2012,10165056
Resources & Corporate Governance,Handy man,WHM00,Materials,303,540,Norfolk Frames Ltd,112863,08/03/2012,10164051
Capital Program ,Purchase of Vehicles,VHC00,Miscellaneous Capital Expenditure,5020,11650,Geo Browns Implements Ltd,112870,15/03/2012,10164610
Resources & Corporate Governance ,Domestic Waste Collection,WWC00,Agency Staff,3,1107.14,Extra Personnel Limited,112996,01/03/2012,10163804
Resources & Corporate Governance ,Domestic Waste Collection,WWC00,Agency Staff,3,1016.74,Extra Personnel Limited,112996,08/03/2012,10164110
Resources & Corporate Governance ,Domestic Waste Collection,WWC00,Agency Staff,3,1016.74,Extra Personnel Limited,112996,15/03/2012,10164458
Resources & Corporate Governance ,Domestic Waste Collection,WWC00,Agency Staff,3,1016.74,Extra Personnel Limited,112996,22/03/2012,10164828
Resources & Corporate Governance ,Domestic Waste Collection,WWC00,Agency Staff,3,714.29,Extra Personnel Limited,112996,29/03/2012,10165237
Sustainable Environment ,Cemeteries General,CEM00,External Contractor & Operator,742,108.88,Acorn Environmental Management Group Ltd,113313,01/03/2012,10163884
Housing Revenue Account ,Maintenance of Open Spaces,MOS00,External Contractor & Operator,742,2084.87,Acorn Environmental Management Group Ltd,113313,01/03/2012,10163884
Sustainable Environment ,Recreation Grounds/Open Spaces,PKS01,External Contractor & Operator,742,372.9,Acorn Environmental Management Group Ltd,113313,01/03/2012,10163884
Not in a portfolio,Principal Road Maintenance,HIA01,Hedges and Trees,8017,4537.64,Acorn Environmental Management Group Ltd,113313,01/03/2012,10163884
Sustainable Environment ,Recreation Grounds/Open Spaces,PKS01,External Contractor & Operator,742,1679.99,Acorn Environmental Management Group Ltd,113313,01/03/2012,10163885
Not in a portfolio,Principal Road Maintenance,HIA01,Hedges and Trees,8017,1679.99,Acorn Environmental Management Group Ltd,113313,01/03/2012,10163885
Sustainable Environment ,Cemeteries General,CEM00,External Contractor & Operator,742,149.94,Acorn Environmental Management Group Ltd,113313,29/03/2012,10164991
Economy Development & Culture,General Highways Services,HIG00,External Contractor & Operator,742,763.61,Acorn Environmental Management Group Ltd,113313,29/03/2012,10164991
Housing Revenue Account ,Maintenance of Open Spaces,MOS00,External Contractor & Operator,742,515.4,Acorn Environmental Management Group Ltd,113313,29/03/2012,10164991
Sustainable Environment ,Caldecott Park/Town Centre Area,PKS00,External Contractor & Operator,742,1448.13,Acorn Environmental Management Group Ltd,113313,29/03/2012,10164991
Sustainable Environment ,Recreation Grounds/Open Spaces,PKS01,External Contractor & Operator,742,3477.43,Acorn Environmental Management Group Ltd,113313,29/03/2012,10164991
Not in a portfolio,Principal Road Maintenance,HIA01,Hedges and Trees,8017,4995.94,Acorn Environmental Management Group Ltd,113313,29/03/2012,10164991
Sustainable Environment ,Cemeteries General,CEM00,External Contractor & Operator,742,1516.46,Acorn Environmental Management Group Ltd,113313,22/03/2012,10164992
Sustainable Environment ,Caldecott Park/Town Centre Area,PKS00,External Contractor & Operator,742,1516.45,Acorn Environmental Management Group Ltd,113313,22/03/2012,10164992
Resources & Corporate Governance ,General Administration,WAD00,Training fees,11,1703,Acorn Environmental Management Group Ltd,113313,29/03/2012,10165388
Resources & Corporate Governance ,Grounds Maintenance,WGM00,Tools,304,4204.5,Acorn Environmental Management Group Ltd,113313,29/03/2012,10165465
Capital Program ,Purchase of Vehicles,VHC00,Miscellaneous Capital Expenditure,5020,23000,Acorn Environmental Management Group Ltd,113313,29/03/2012,10165465
Sustainable Environment ,Recreation Grounds/Open Spaces,PKS01,External Contractor & Operator,742,1550,S C Lacey,113418,29/03/2012,10165042
Resources & Corporate Governance,Handy man,WHM00,Materials,303,575.24,J K Timber & Packing Ltd,114131,01/03/2012,10163164
Economy Development & Culture,Ken Marriott Leisure Centre,KML00,External Contractor & Operator,742,24306.04,DC Leisure Management Ltd (Otium),114443,08/03/2012,10164060
Economy Development & Culture,Ken Marriott Leisure Centre,KML00,External Contractor & Operator,742,23082.66,DC Leisure Management Ltd (Otium),114443,29/03/2012,10165166
Housing Revenue Account ,Unplanned Maintenance and Repair,UMR00,R&M External Contractors,100,1341.4,Temple Lifts Ltd,114738,15/03/2012,10164498
Resources & Corporate Governance,Corporate Property R&M,CPA01,R&M External Contractors,100,596.6,Steve Diston Carpets,114897,29/03/2012,10165007
Resources & Corporate Governance ,WSU Depot,WDP00,Messing Facilities,332,568.8,Siemens Financial Services Ltd,116057,29/03/2012,10164768
Economy Development & Culture,AGM Exhibitions/Outreach,AGM02,Other Miscellaneous Expenses,444,1600,Craftspace Ltd,116222,29/03/2012,10165186
Sustainable Environment ,Head of Environmental Services,ENV00,Training fees,11,5320,OSTAS,117097,29/03/2012,10165476
Capital Program ,Purchase of Vehicles,VHC00,Miscellaneous Capital Expenditure,5020,94875,Farid Municipal Vehicles Limited,118309,22/03/2012,10164967
Economy Development & Culture,Art Gallery and Museum,AGM00,Electricity,130,3978.92,Southern Electric,118976,01/03/2012,10163244
Economy Development & Culture,The Benn Hall,BHL00,Electricity,130,481.98,Southern Electric,118976,01/03/2012,10163244
Resources & Corporate Governance ,Town Hall,OFF00,Electricity,130,3899.75,Southern Electric,118976,01/03/2012,10163244
Sustainable Environment ,Street Scene,ENV30,Development Activities,450,448.28,Southern Electric,118976,01/03/2012,10163892
Economy Development & Culture,Art Gallery and Museum,AGM00,Electricity,130,3844.91,Southern Electric,118976,22/03/2012,10164511
Economy Development & Culture,The Benn Hall,BHL00,Electricity,130,458.85,Southern Electric,118976,22/03/2012,10164511
Resources & Corporate Governance ,Town Hall,OFF00,Electricity,130,3712.51,Southern Electric,118976,22/03/2012,10164511
Resources & Corporate Governance ,The Lawn,OFF01,Electricity,130,778.36,Southern Electric,118976,22/03/2012,10164511
Resources & Corporate Governance ,The Retreat,OFF02,Electricity,130,877.72,Southern Electric,118976,22/03/2012,10164511
Resources & Corporate Governance ,Mayoral Services,May-00,Electricity,130,22.03,Southern Electric,118976,15/03/2012,10164555
Sustainable Environment ,Recreation Grounds/Open Spaces,PKS01,Electricity,130,-74.32,Southern Electric,118976,15/03/2012,10164555
Sustainable Environment ,Administration,PKS12,Electricity,130,-1069.19,Southern Electric,118976,15/03/2012,10164555
Sustainable Inclusive Communities,Sewage Disposal Plant,SDP00,Electricity,130,59.03,Southern Electric,118976,15/03/2012,10164555
Resources & Corporate Governance ,WSU Depot,WDP00,Electricity,130,3153.92,Southern Electric,118976,15/03/2012,10164555
Economy Development & Culture,AGM Conservation/Documentation,AGM01,Other Miscellaneous Expenses,444,1294,Ruth E Bubb,119108,29/03/2012,10165184
Resources & Corporate Governance ,Maintenance of Customer Services Systems,CIS21,Software Maintenance,374,16108.71,Capita Software Services,119406,29/03/2012,10165105
Housing Revenue Account ,Unplanned Maintenance and Repair,UMR00,R&M External Contractors,100,766,Pro-Tec Security Systems,119999,22/03/2012,10164730
Resources & Corporate Governance ,Street Cleansing,WSC00,Agency Staff,3,13.28,G-Staff Ltd,120173,01/03/2012,10163811
Resources & Corporate Governance ,Domestic Waste Collection,WWC00,Agency Staff,3,1366.8,G-Staff Ltd,120173,01/03/2012,10163811
Resources & Corporate Governance ,Toilet Cleaning,WBC01,Agency Staff,3,99.7,G-Staff Ltd,120173,29/03/2012,10164238
Resources & Corporate Governance ,Street Cleansing,WSC00,Agency Staff,3,294.12,G-Staff Ltd,120173,29/03/2012,10164238
Resources & Corporate Governance ,Domestic Waste Collection,WWC00,Agency Staff,3,820.08,G-Staff Ltd,120173,29/03/2012,10164238
Resources & Corporate Governance ,Domestic Waste Collection,WWC00,Agency Staff,3,588.81,G-Staff Ltd,120173,29/03/2012,10164453
Resources & Corporate Governance ,Street Cleansing,WSC00,Agency Staff,3,334,G-Staff Ltd,120173,29/03/2012,10165233
Resources & Corporate Governance ,Domestic Waste Collection,WWC00,Agency Staff,3,969.02,G-Staff Ltd,120173,29/03/2012,10165233
Resources & Corporate Governance ,IT Procurement,CMP00,IT Capital Expenditure,5025,9000,Jadu Ltd,120407,08/03/2012,10164105
Resources & Corporate Governance ,Maintenance of Customer Services Systems,CIS21,Software Maintenance,374,1300,Northgate Information Solutions UK Ltd,121606,29/03/2012,10165350
Resources & Corporate Governance ,Domestic Waste Collection,WWC00,Other Insurance Excesses,441,5000,Travelers Insurance Co,121642,29/03/2012,10165171
Resources & Corporate Governance ,Street Cleansing,WSC00,Other Insurance Excesses,441,5000,Travelers Insurance Co,121642,29/03/2012,10165191
Resources & Corporate Governance,Central Business Support Services,CSS15,Postage & Distribution,370,952.5,DX NETWORK SERVICES LTD,121717,22/03/2012,10162759
Housing Revenue Account ,Supervision and Management General,MAN00,Publicity & Marketing,377,905,Janus Kreative,121748,15/03/2012,10164533
Resources & Corporate Governance ,WSU Depot,WDP00,Messing Facilities,332,645,Fueltek Ltd,123134,29/03/2012,10165185
Capital Program ,Open Spaces Refurbishment,LEI08,Capital Contract Payments,5000,15031.8,Proludic,123148,15/03/2012,10163904
Resources & Corporate Governance ,Central Telephone Service,TEL00,Telephone Expenses,371,1135.27,Cable & Wireless,123224,15/03/2012,10164391
Resources & Corporate Governance ,Grounds Maintenance,WGM00,Materials,303,750,Rigby Taylor Ltd,123342,22/03/2012,10164002
Resources & Corporate Governance ,Grounds Maintenance,WGM00,Materials,303,644,Rigby Taylor Ltd,123342,08/03/2012,10164003
Capital Program ,RG Disabled Facilities,REN01,Capital Grants,5014,5440,Dolphin Lifts,123353,22/03/2012,10164845
Capital Program ,Open Spaces Refurbishment,LEI08,Capital Contract Payments,5000,3167,Broxap Limited,123396,01/03/2012,10163855
Housing Revenue Account ,Estate Management,MAN22,Movement Incentives,454,1000,REDACTED PERSONAL DATA,124083,08/03/2012,10164368
Resources & Corporate Governance ,"Communications, Consultation and Information Team",BTR20,Publicity & Marketing,377,806.1,British Telecommunications,124840,29/03/2012,10165163
Resources & Corporate Governance ,Human Resources Centralised Services,RES31,Training fees,11,449,Keep Britain Tidy,124855,08/03/2012,10164079
Resources & Corporate Governance,Corporate Property R&M,CPA01,R&M External Contractors,100,1351.69,Utilitycom Ltd,124856,29/03/2012,10165416
Capital Program ,RG Disabled Facilities,REN01,Capital Grants,5014,10333.22,Wessex Lifts,125593,15/03/2012,10164323
Resources & Corporate Governance ,Street Cleansing,WSC00,Vehicle Repair and Maintenance,200,210,Guest Trucks,126437,08/03/2012,10164342
Capital Program ,Purchase of Vehicles,VHC00,Miscellaneous Capital Expenditure,5020,9250,Guest Trucks,126437,08/03/2012,10164342
Resources & Corporate Governance,Handy man,WHM00,Vehicle Repair and Maintenance,200,210,Guest Trucks,126437,22/03/2012,10164812
Capital Program ,Purchase of Vehicles,VHC00,Miscellaneous Capital Expenditure,5020,9950,Guest Trucks,126437,22/03/2012,10164812
Housing Revenue Account ,Eliot Court AP,AGP25,New Equipment,300,45,Lyreco,129956,22/03/2012,10164799
Resources & Corporate Governance,Central Business Support Services,CSS15,New Equipment,300,5.37,Lyreco,129956,22/03/2012,10164799
Resources & Corporate Governance,Central Business Support Services,CSS15,Stationery Supplies,350,391.27,Lyreco,129956,22/03/2012,10164799
Sustainable Environment,Regulatory Services,REG00,Health and Safety Costs,449,21.91,Lyreco,129956,22/03/2012,10164799
Resources & Corporate Governance ,"Communications, Consultation and Information Team",BTR20,Consultation,378,10700,Rugby FM,131249,22/03/2012,10164669
Housing Revenue Account ,Estate Management,MAN22,Movement Incentives,454,4700,REDACTED PERSONAL DATA,131406,01/03/2012,10163865
Sustainable Environment ,Recreation Grounds/Open Spaces,PKS01,External Contractor & Operator,742,594,I D Welding & Fabrications,131407,15/03/2012,10164240
Capital Program ,Open Spaces Refurbishment,LEI08,Capital Contract Payments,5000,20743.84,Sutcliffe Play Ltd,131511,22/03/2012,10164667
Sustainable Environment,Regulatory Services,REG00,External Contractor & Operator,742,4372.35,Aecom Ltd,131603,22/03/2012,10165037
Economy Development & Culture,Car Parks General,CPK01,Cash Collection,744,991.88,Jade Security Services Ltd,131711,22/03/2012,10164397
Economy Development & Culture,Decrim. of Car Parking on street parking,DPE02,Cash Collection,744,548,Jade Security Services Ltd,131711,22/03/2012,10164398
Economy Development & Culture,Car Parks General,CPK01,Training fees,11,199,Alpha Parking Ltd,131720,08/03/2012,10163567
Economy Development & Culture,Decrim. of Car Parking on street parking,DPE02,Training fees,11,796,Alpha Parking Ltd,131720,08/03/2012,10163567
Housing Revenue Account ,Asbestos Surveys,UMR05,R&M External Contractors,100,230,Challen Commercial Investigations Ltd T/A Ensafe,131876,08/03/2012,10164184
Capital Program ,Kitchen Modifications,HIK10,Capital Contract Payments,5000,245,Challen Commercial Investigations Ltd T/A Ensafe,131876,08/03/2012,10164184
Capital Program ,Heating Upgrades,HIM01,Capital Contract Payments,5000,375,Challen Commercial Investigations Ltd T/A Ensafe,131876,08/03/2012,10164184
Capital Program ,Bathroom Modifications,HIS01,Capital Contract Payments,5000,130,Challen Commercial Investigations Ltd T/A Ensafe,131876,08/03/2012,10164184
Capital Program ,RG Disabled Facilities,REN01,Capital Grants,5014,4226,D K Builders,131946,15/03/2012,10164653
Housing Revenue Account ,Unplanned Maintenance and Repair,UMR00,R&M External Contractors,100,750.9,Wilson Electrics,132051,22/03/2012,10164731
Housing Revenue Account ,Unplanned Maintenance and Repair,UMR00,R&M External Contractors,100,558.26,Wilson Electrics,132051,29/03/2012,10165421
Sustainable Environment,Regulatory Services,REG00,External Contractor & Operator,742,1404.9,Dunsmore Kennels,133524,01/03/2012,10163584
Resources & Corporate Governance,Corporate Property R&M,CPA01,R&M External Contractors,100,593.6,Sunfish Services Ltd,133886,01/03/2012,10163549
Resources & Corporate Governance,Corporate Property R&M,CPA01,R&M External Contractors,100,437.78,Sunfish Services Ltd,133886,08/03/2012,10163579
Housing Revenue Account ,Unplanned Maintenance and Repair,UMR00,R&M External Contractors,100,1908.06,Sunfish Services Ltd,133886,01/03/2012,10163744
Resources & Corporate Governance,Corporate Property R&M,CPA01,R&M External Contractors,100,14558.87,Sunfish Services Ltd,133886,01/03/2012,10163900
Housing Revenue Account ,Unplanned Maintenance and Repair,UMR00,R&M External Contractors,100,2605.56,Delec Ltd,133887,01/03/2012,10163881
Housing Revenue Account ,Estate Management,MAN22,Movement Incentives,454,18.55,Delec Ltd,133887,01/03/2012,10163881
Housing Revenue Account ,Unplanned Maintenance and Repair,UMR00,R&M External Contractors,100,901.21,Delec Ltd,133887,01/03/2012,10163924
Housing Revenue Account ,Unplanned Maintenance and Repair,UMR00,R&M External Contractors,100,1103.69,Delec Ltd,133887,08/03/2012,10164180
Housing Revenue Account ,Unplanned Maintenance and Repair,UMR00,R&M External Contractors,100,2561.4,Delec Ltd,133887,08/03/2012,10164331
Housing Revenue Account ,Unplanned Maintenance and Repair,UMR00,R&M External Contractors,100,1101.6,Delec Ltd,133887,15/03/2012,10164445
Housing Revenue Account ,Unplanned Maintenance and Repair,UMR00,R&M External Contractors,100,1294.51,Delec Ltd,133887,29/03/2012,10165341
Resources & Corporate Governance ,Human Resources Centralised Services,RES31,Eye Tests & Glasses Contributions,15,850,Specsavers Optical Superstores,134897,08/03/2012,10164340
Resources & Corporate Governance ,Garage Internal,WVR01,Materials,303,957.2,Brenntag UK Limited,135098,01/03/2012,10163657
,Balance Sheet,BS,Car Leasing Scheme,9244,812.71,GE Commercial Finance (Custom Fleet),137111,08/03/2012,10164125
Resources & Corporate Governance ,Street Cleansing,WSC00,Materials,303,436,Danline International Ltd,137588,29/03/2012,10165204
Sustainable Environment ,Street Scene,ENV30,R&M External Contractors,100,1550,Listers Geotechnical Consultants Ltd,138527,15/03/2012,10164456
Housing Revenue Account ,Sheltered Housing,AGP00,Contract Cleaning,170,14297.47,Regent Office Care Ltd T/A Regent Cleaning,138934,01/03/2012,10163129
Sustainable Inclusive Communities,Housing Options Team,HOT00,Contract Cleaning,170,134.76,Regent Office Care Ltd T/A Regent Cleaning,138934,01/03/2012,10163129
Housing Revenue Account ,Estate Management,MAN22,Contract Cleaning,170,3078.9,Regent Office Care Ltd T/A Regent Cleaning,138934,01/03/2012,10163129
Housing Revenue Account ,Multi-Storey Flats,MSF00,Contract Cleaning,170,1731.9,Regent Office Care Ltd T/A Regent Cleaning,138934,01/03/2012,10163129
Resources & Corporate Governance ,Town Hall,OFF00,Contract Cleaning,170,4588.74,Regent Office Care Ltd T/A Regent Cleaning,138934,15/03/2012,10164201
Resources & Corporate Governance ,WSU Depot,WDP00,Contract Cleaning,170,219,Regent Office Care Ltd T/A Regent Cleaning,138934,15/03/2012,10164201
Resources & Corporate Governance ,Grounds Maintenance,WGM00,Contract Cleaning,170,147.5,Regent Office Care Ltd T/A Regent Cleaning,138934,15/03/2012,10164201
Housing Revenue Account ,Sheltered Housing,AGP00,Contract Cleaning,170,14297.47,Regent Office Care Ltd T/A Regent Cleaning,138934,22/03/2012,10164205
Sustainable Inclusive Communities,Housing Options Team,HOT00,Contract Cleaning,170,134.76,Regent Office Care Ltd T/A Regent Cleaning,138934,22/03/2012,10164205
Housing Revenue Account ,Estate Management,MAN22,Contract Cleaning,170,3078.9,Regent Office Care Ltd T/A Regent Cleaning,138934,22/03/2012,10164205
Housing Revenue Account ,Multi-Storey Flats,MSF00,Contract Cleaning,170,1731.9,Regent Office Care Ltd T/A Regent Cleaning,138934,22/03/2012,10164205
Housing Revenue Account ,Unplanned Maintenance and Repair,UMR00,R&M External Contractors,100,1570.95,Regent Office Care Ltd T/A Regent Cleaning,138934,08/03/2012,10164332
Housing Revenue Account ,Unplanned Maintenance and Repair,UMR00,R&M External Contractors,100,1881.74,Regent Office Care Ltd T/A Regent Cleaning,138934,15/03/2012,10164444
Economy Development & Culture,AGM Conservation/Documentation,AGM01,Other Miscellaneous Expenses,444,869,Meaco Measurement and Control Ltd,138998,22/03/2012,10164724
Sustainable Environment ,Recreation Grounds/Open Spaces,PKS01,External Contractor & Operator,742,3000,D J Whitlock Plant Hire,140156,15/03/2012,10164341
Sustainable Environment ,Recreation Grounds/Open Spaces,PKS01,External Contractor & Operator,742,1000,D J Whitlock Plant Hire,140156,29/03/2012,10164549
Sustainable Environment ,Recreation Grounds/Open Spaces,PKS01,External Contractor & Operator,742,950,D J Whitlock Plant Hire,140156,22/03/2012,10164769
Resources & Corporate Governance ,Maintenance of Customer Services Systems,CIS21,Software Maintenance,374,4276.44,Midland Software Ltd,140463,29/03/2012,10164123
Resources & Corporate Governance ,Maintenance of Customer Services Systems,CIS21,Consultancy Costs,740,1803.09,Midland Software Ltd,140463,22/03/2012,10165012
Capital Program ,Electric to Gas Conversions,HIM04,Capital Contract Payments,5000,1995.28,J Murphy and Sons Ltd,140688,22/03/2012,10162503
Capital Program ,Great Central Walk Bridge,LEI14,Capital Contract Payments,5000,23227.91,J Murphy and Sons Ltd,140688,08/03/2012,10163934
Capital Program ,Open Spaces Refurbishment,LEI08,Capital Contract Payments,5000,1174,Park Leisure Ltd,141165,01/03/2012,10161918
Economy Development & Culture,Visitor Centre,VSC00,Events Tickets - Standard Rated,1404,755.25,West End Theatre Managers Ltd,141169,15/03/2012,10164660
Economy Development & Culture,AGM Exhibitions/Outreach,AGM02,Other Miscellaneous Expenses,444,2000,Jonathan Ross Holograms,141362,01/03/2012,10163927
Resources & Corporate Governance ,Customer and Information Strategy,CIS10,Telephone Expenses,371,21.27,Zen Internet Ltd,141612,15/03/2012,10164429
Sustainable Inclusive Communities,Housing Benefit Administration,HBA00,Telephone Expenses,371,21.27,Zen Internet Ltd,141612,15/03/2012,10164429
Resources & Corporate Governance ,Customer and Information Strategy,CIS10,Hardware Maintenance,376,578,Zen Internet Ltd,141612,15/03/2012,10164429
Resources & Corporate Governance ,Customer and Information Strategy,CIS10,Telephone Expenses,371,793.16,Zen Internet Ltd,141612,29/03/2012,10165146
Economy Development & Culture,Gypsy and Traveller Enforcement,PLN10,External Legal Costs,741,6750,Frampton Town Planning Ltd,142071,29/03/2012,10165137
Capital Program ,Kitchen Modifications,HIK10,Capital Contract Payments,5000,21432,Ian Williams Ltd,142238,01/03/2012,10163485
Capital Program ,Kitchen Modifications,HIK10,Capital Contract Payments,5000,2256,Ian Williams Ltd,142238,15/03/2012,10163874
Capital Program ,Kitchen Modifications,HIK10,Capital Contract Payments,5000,26320,Ian Williams Ltd,142238,22/03/2012,10164379
Resources & Corporate Governance ,Maintenance of Customer Services Systems,CIS21,Software Maintenance,374,9215.86,Xpress Software Solutions Ltd,143411,29/03/2012,10163763
Resources & Corporate Governance ,IT Procurement,CMP00,IT Capital Expenditure,5025,32357.22,Commercial Ltd,143873,29/03/2012,10165375
Housing Revenue Account ,Control Centre CCTV,CCE01,External Contractor & Operator,742,15432.24,Securitas Security Personnel Ltd,145079,08/03/2012,10164324
Housing Revenue Account ,Property Maintenance,MAN23,Agency Staff,3,1110,James Andrews Recruitment Solutions Ltd,145100,01/03/2012,10163764
Housing Revenue Account ,Property Maintenance,MAN23,Agency Staff,3,1110,James Andrews Recruitment Solutions Ltd,145100,01/03/2012,10163765
Housing Revenue Account ,Property Maintenance,MAN23,Agency Staff,3,783,James Andrews Recruitment Solutions Ltd,145100,01/03/2012,10163766
Housing Revenue Account ,Property Maintenance,MAN23,Agency Staff,3,696,James Andrews Recruitment Solutions Ltd,145100,01/03/2012,10163767
Housing Revenue Account ,Property Maintenance,MAN23,Agency Staff,3,1030.36,James Andrews Recruitment Solutions Ltd,145100,01/03/2012,10163768
Housing Revenue Account ,Property Maintenance,MAN23,Agency Staff,3,1132.5,James Andrews Recruitment Solutions Ltd,145100,01/03/2012,10163800
Housing Revenue Account ,Property Maintenance,MAN23,Agency Staff,3,1110,James Andrews Recruitment Solutions Ltd,145100,01/03/2012,10163801
Housing Revenue Account ,Property Maintenance,MAN23,Agency Staff,3,1110,James Andrews Recruitment Solutions Ltd,145100,01/03/2012,10163802
Sustainable Inclusive Communities,Housing Strategy & Enabling,HSE00,Agency Staff,3,492.1,James Andrews Recruitment Solutions Ltd,145100,08/03/2012,10164020
Sustainable Inclusive Communities,Housing Strategy & Enabling,HSE00,Agency Staff,3,513.19,James Andrews Recruitment Solutions Ltd,145100,08/03/2012,10164022
Housing Revenue Account ,Property Maintenance,MAN23,Agency Staff,3,997.13,James Andrews Recruitment Solutions Ltd,145100,15/03/2012,10164024
Housing Revenue Account ,Property Maintenance,MAN23,Agency Staff,3,1110,James Andrews Recruitment Solutions Ltd,145100,15/03/2012,10164025
Housing Revenue Account ,Property Maintenance,MAN23,Agency Staff,3,1110,James Andrews Recruitment Solutions Ltd,145100,15/03/2012,10164316
Housing Revenue Account ,Property Maintenance,MAN23,Agency Staff,3,1247,James Andrews Recruitment Solutions Ltd,145100,15/03/2012,10164317
Housing Revenue Account ,Property Maintenance,MAN23,Agency Staff,3,1131,James Andrews Recruitment Solutions Ltd,145100,15/03/2012,10164318
Housing Revenue Account ,Property Maintenance,MAN23,Agency Staff,3,1013.78,James Andrews Recruitment Solutions Ltd,145100,15/03/2012,10164319
Sustainable Inclusive Communities,Housing Strategy & Enabling,HSE00,Agency Staff,3,492.1,James Andrews Recruitment Solutions Ltd,145100,15/03/2012,10164432
Housing Revenue Account ,Property Maintenance,MAN23,Agency Staff,3,1174.5,James Andrews Recruitment Solutions Ltd,145100,15/03/2012,10164433
Sustainable Inclusive Communities,Housing Strategy & Enabling,HSE00,Agency Staff,3,478.04,James Andrews Recruitment Solutions Ltd,145100,15/03/2012,10164464
Housing Revenue Account ,Property Maintenance,MAN23,Agency Staff,3,1110,James Andrews Recruitment Solutions Ltd,145100,15/03/2012,10164636
Housing Revenue Account ,Property Maintenance,MAN23,Agency Staff,3,1110,James Andrews Recruitment Solutions Ltd,145100,15/03/2012,10164637
Housing Revenue Account ,Property Maintenance,MAN23,Agency Staff,3,890.77,James Andrews Recruitment Solutions Ltd,145100,15/03/2012,10164638
Housing Revenue Account ,Property Maintenance,MAN23,Agency Staff,3,671.4,James Andrews Recruitment Solutions Ltd,145100,29/03/2012,10165143
Housing Revenue Account ,Property Maintenance,MAN23,Agency Staff,3,1044,James Andrews Recruitment Solutions Ltd,145100,29/03/2012,10165144
Housing Revenue Account ,Property Maintenance,MAN23,Agency Staff,3,928,James Andrews Recruitment Solutions Ltd,145100,29/03/2012,10165145
Economy Development & Culture,Ken Marriott Leisure Centre,KML00,Other,763,1211.7,LAVAT Consulting Limited,145204,22/03/2012,10165030
Capital Program ,Concrete Retaining Bay,RCY04,Capital Contract Payments,5000,4210,Postlethwaite,145230,15/03/2012,10164070
Economy Development & Culture,Art Gallery and Museum,AGM00,Development Activities,450,1400,Beingfrank Physical Theatre Ltd,145323,22/03/2012,10165025
Resources & Corporate Governance ,Street Cleansing,WSC00,Agency Staff,3,555.28,Blue Arrow Limited,145492,01/03/2012,10161793
Resources & Corporate Governance ,Domestic Waste Collection,WWC00,Agency Staff,3,354.76,Blue Arrow Limited,145492,01/03/2012,10161793
Resources & Corporate Governance ,Street Cleansing,WSC00,Agency Staff,3,578.68,Blue Arrow Limited,145492,01/03/2012,10162196
Resources & Corporate Governance ,Street Cleansing,WSC00,Agency Staff,3,740,Blue Arrow Limited,145492,01/03/2012,10162573
Resources & Corporate Governance ,Domestic Waste Collection,WWC00,Agency Staff,3,119.26,Blue Arrow Limited,145492,01/03/2012,10162573
Resources & Corporate Governance,Handy man,WHM00,Agency Staff,3,105.56,Blue Arrow Limited,145492,08/03/2012,10163839
Resources & Corporate Governance ,Street Cleansing,WSC00,Agency Staff,3,520,Blue Arrow Limited,145492,08/03/2012,10163839
Resources & Corporate Governance,Handy man,WHM00,Agency Staff,3,269.36,Blue Arrow Limited,145492,08/03/2012,10164253
Resources & Corporate Governance ,Street Cleansing,WSC00,Agency Staff,3,370,Blue Arrow Limited,145492,08/03/2012,10164253
Sustainable Environment ,Caldecott Park/Town Centre Area,PKS00,External Contractor & Operator,742,610,Elliott,145547,01/03/2012,10163491
Resources & Corporate Governance ,Safety and Resilience,EPL00,Other Miscellaneous Expenses,444,762.1,AST Connections Ltd,145592,15/03/2012,10164650
Resources & Corporate Governance,Corporate Property R&M,CPA01,R&M External Contractors,100,593,Energy Services Management Limited,145695,29/03/2012,10165460
Resources & Corporate Governance,Corporate Property R&M,CPA01,R&M External Contractors,100,593,Energy Services Management Limited,145695,29/03/2012,10165461
Economy Development & Culture,AGM Exhibitions/Outreach,AGM02,Other Miscellaneous Expenses,444,900,Stereographic Ltd,145779,22/03/2012,10164818
Capital Program ,Great Central Walk Bridge,LEI14,Capital Contract Payments,5000,1466.88,Opus International Consultants (uk) Ltd,145813,29/03/2012,10165260
Capital Program ,RG Disabled Facilities,REN01,Capital Grants,5014,6000,Inhouse Renovations,145963,01/03/2012,10163473
Capital Program ,RG Disabled Facilities,REN01,Capital Grants,5014,6000,Inhouse Renovations,145963,01/03/2012,10163474
Resources & Corporate Governance ,General Financial Services,GFS00,External Contractor & Operator,742,3000,Sector Treasury Services Ltd,145990,29/03/2012,10165174
Resources & Corporate Governance ,Safety and Resilience,EPL00,Training fees,11,750,Serco Ltd,146371,29/03/2012,10164823
Resources & Corporate Governance ,Safety and Resilience,EPL00,Training fees,11,750,Serco Ltd,146371,29/03/2012,10164824
Resources & Corporate Governance ,WSU Depot,WDP00,Telephone Expenses,371,4420.33,Virgin Media Business Ltd,146605,08/03/2012,10164367
Sustainable Environment ,Recreation Grounds/Open Spaces,PKS01,External Contractor & Operator,742,962.5,UVS Sign & Design Ltd,146676,29/03/2012,10165267
Resources & Corporate Governance ,WSU Depot,WDP00,Materials,303,1595,Weightron Bilanciai Limited,146759,01/03/2012,10163803
Economy Development & Culture,Economic Development General,ECD00,Borough Local Plan,452,600,Miss Nadia Sharif,146769,01/03/2012,10162820
Capital Program ,Corporate Property Enhancements,CPE00,Capital Contract Payments,5000,12487.5,Ecolight,146781,08/03/2012,10163812
Resources & Corporate Governance,Handy man,WHM00,Agency Staff,3,431.06,Fresh Recruitment Solutions (FRS) Ltd,146784,08/03/2012,10163942
Resources & Corporate Governance,Handy man,WHM00,Agency Staff,3,465.03,Fresh Recruitment Solutions (FRS) Ltd,146784,15/03/2012,10164350
Resources & Corporate Governance,Handy man,WHM00,Agency Staff,3,438.9,Fresh Recruitment Solutions (FRS) Ltd,146784,22/03/2012,10164605
Resources & Corporate Governance ,Trade Waste Collection,WWC01,Agency Staff,3,498.49,Fresh Recruitment Solutions (FRS) Ltd,146784,29/03/2012,10164971
Resources & Corporate Governance,Handy man,WHM00,Agency Staff,3,449.35,Fresh Recruitment Solutions (FRS) Ltd,146784,22/03/2012,10164976
Capital Program ,Kitchen Modifications,HIK10,Capital Contract Payments,5000,1535,Jacobs Engineering UK Ltd,146808,22/03/2012,10162210
Capital Program ,Heating Upgrades,HIM01,Capital Contract Payments,5000,1133,Jacobs Engineering UK Ltd,146808,22/03/2012,10162210
Capital Program ,Bathroom Modifications,HIS01,Capital Contract Payments,5000,1342,Jacobs Engineering UK Ltd,146808,22/03/2012,10162210
Economy Development & Culture,Visitor Centre,VSC00,Purchases for Resale,305,434.6,Moussa Direct Ltd,146884,29/03/2012,10164787
Economy Development & Culture,AGM Exhibitions/Outreach,AGM02,Other Miscellaneous Expenses,444,4000,Vertigo Creative Studio Ltd,146896,01/03/2012,10163754
Resources & Corporate Governance ,Retired Employees,RET00,Additional Pension Payments,14,1625.01,WCC Pension Fund,146914,29/03/2012,10165164
Resources & Corporate Governance ,Retired Employees,RET00,Additional Pension Payments,14,158433.81,WCC Pension Fund,146914,29/03/2012,10165165
Resources & Corporate Governance ,Retired Employees,RET00,Additional Pension Payments,14,22342.66,WCC Pension Fund,146914,29/03/2012,10165192
Economy Development & Culture,Building Control Services,BCS00,Postage & Distribution,370,0.52,TNT Post Midlands Ltd,146983,01/03/2012,10163740
Economy Development & Culture,Building Regulation Fee Earning Account,BCS99,Postage & Distribution,370,0.7,TNT Post Midlands Ltd,146983,01/03/2012,10163740
Resources & Corporate Governance,Central Business Support Services,CSS15,Postage & Distribution,370,43.74,TNT Post Midlands Ltd,146983,01/03/2012,10163740
Resources & Corporate Governance ,Council Tax and NNDR Collection,CTX01,Postage & Distribution,370,175.02,TNT Post Midlands Ltd,146983,01/03/2012,10163740
Resources & Corporate Governance ,Electoral Registration,ERG00,Postage & Distribution,370,35.37,TNT Post Midlands Ltd,146983,01/03/2012,10163740
Sustainable Inclusive Communities,Housing Benefit Administration,HBA00,Postage & Distribution,370,140.96,TNT Post Midlands Ltd,146983,01/03/2012,10163740
Housing Revenue Account ,Supervision and Management General,MAN00,Postage & Distribution,370,37.61,TNT Post Midlands Ltd,146983,01/03/2012,10163740
Economy Development & Culture,Planning General/Income,PLN00,Postage & Distribution,370,22.01,TNT Post Midlands Ltd,146983,01/03/2012,10163740
Resources & Corporate Governance ,General Administration,WAD00,Postage & Distribution,370,1.31,TNT Post Midlands Ltd,146983,01/03/2012,10163740
Economy Development & Culture,Art Gallery and Museum,AGM00,Postage & Distribution,370,36.43,TNT Post Midlands Ltd,146983,22/03/2012,10163931
Economy Development & Culture,Building Control Services,BCS00,Postage & Distribution,370,0.2,TNT Post Midlands Ltd,146983,22/03/2012,10163931
Economy Development & Culture,Building Regulation Fee Earning Account,BCS99,Postage & Distribution,370,0.27,TNT Post Midlands Ltd,146983,22/03/2012,10163931
Resources & Corporate Governance,Central Business Support Services,CSS15,Postage & Distribution,370,19.86,TNT Post Midlands Ltd,146983,22/03/2012,10163931
Resources & Corporate Governance ,Council Tax and NNDR Collection,CTX01,Postage & Distribution,370,192.38,TNT Post Midlands Ltd,146983,22/03/2012,10163931
Resources & Corporate Governance ,Electoral Registration,ERG00,Postage & Distribution,370,1.51,TNT Post Midlands Ltd,146983,22/03/2012,10163931
Sustainable Inclusive Communities,Housing Benefit Administration,HBA00,Postage & Distribution,370,134.27,TNT Post Midlands Ltd,146983,22/03/2012,10163931
Housing Revenue Account ,Supervision and Management General,MAN00,Postage & Distribution,370,40.64,TNT Post Midlands Ltd,146983,22/03/2012,10163931
Economy Development & Culture,Planning General/Income,PLN00,Postage & Distribution,370,7.53,TNT Post Midlands Ltd,146983,22/03/2012,10163931
Resources & Corporate Governance ,General Administration,WAD00,Postage & Distribution,370,11.14,TNT Post Midlands Ltd,146983,22/03/2012,10163931
Economy Development & Culture,Building Control Services,BCS00,Postage & Distribution,370,5.44,TNT Post Midlands Ltd,146983,29/03/2012,10164377
Economy Development & Culture,Building Regulation Fee Earning Account,BCS99,Postage & Distribution,370,7.22,TNT Post Midlands Ltd,146983,29/03/2012,10164377
Resources & Corporate Governance,Central Business Support Services,CSS15,Postage & Distribution,370,36.94,TNT Post Midlands Ltd,146983,29/03/2012,10164377
Resources & Corporate Governance ,Council Tax and NNDR Collection,CTX01,Postage & Distribution,370,208.83,TNT Post Midlands Ltd,146983,29/03/2012,10164377
Resources & Corporate Governance ,Electoral Registration,ERG00,Postage & Distribution,370,177.05,TNT Post Midlands Ltd,146983,29/03/2012,10164377
Sustainable Inclusive Communities,Housing Benefit Administration,HBA00,Postage & Distribution,370,111.09,TNT Post Midlands Ltd,146983,29/03/2012,10164377
Housing Revenue Account ,Supervision and Management General,MAN00,Postage & Distribution,370,88.88,TNT Post Midlands Ltd,146983,29/03/2012,10164377
Economy Development & Culture,Planning General/Income,PLN00,Postage & Distribution,370,2.4,TNT Post Midlands Ltd,146983,29/03/2012,10164377
Resources & Corporate Governance ,General Administration,WAD00,Postage & Distribution,370,0.95,TNT Post Midlands Ltd,146983,29/03/2012,10164377
Economy Development & Culture,Art Gallery and Museum,AGM00,Postage & Distribution,370,1.06,TNT Post Midlands Ltd,146983,29/03/2012,10164710
Economy Development & Culture,Building Control Services,BCS00,Postage & Distribution,370,4.6,TNT Post Midlands Ltd,146983,29/03/2012,10164710
Economy Development & Culture,Building Regulation Fee Earning Account,BCS99,Postage & Distribution,370,6.09,TNT Post Midlands Ltd,146983,29/03/2012,10164710
Resources & Corporate Governance,Central Business Support Services,CSS15,Postage & Distribution,370,58.12,TNT Post Midlands Ltd,146983,29/03/2012,10164710
Resources & Corporate Governance ,Council Tax and NNDR Collection,CTX01,Postage & Distribution,370,697.36,TNT Post Midlands Ltd,146983,29/03/2012,10164710
Resources & Corporate Governance ,Electoral Registration,ERG00,Postage & Distribution,370,67.5,TNT Post Midlands Ltd,146983,29/03/2012,10164710
Sustainable Inclusive Communities,Housing Benefit Administration,HBA00,Postage & Distribution,370,2255.77,TNT Post Midlands Ltd,146983,29/03/2012,10164710
Housing Revenue Account ,Supervision and Management General,MAN00,Postage & Distribution,370,69.36,TNT Post Midlands Ltd,146983,29/03/2012,10164710
Economy Development & Culture,Planning General/Income,PLN00,Postage & Distribution,370,57.67,TNT Post Midlands Ltd,146983,29/03/2012,10164710
Resources & Corporate Governance ,General Administration,WAD00,Postage & Distribution,370,0.8,TNT Post Midlands Ltd,146983,29/03/2012,10164710
Economy Development & Culture,Art Gallery and Museum,AGM00,Postage & Distribution,370,1.84,TNT Post Midlands Ltd,146983,29/03/2012,10164711
Economy Development & Culture,Building Control Services,BCS00,Postage & Distribution,370,2.3,TNT Post Midlands Ltd,146983,29/03/2012,10164711
Economy Development & Culture,Building Regulation Fee Earning Account,BCS99,Postage & Distribution,370,3.05,TNT Post Midlands Ltd,146983,29/03/2012,10164711
Resources & Corporate Governance,Central Business Support Services,CSS15,Postage & Distribution,370,16.48,TNT Post Midlands Ltd,146983,29/03/2012,10164711
Resources & Corporate Governance ,Council Tax and NNDR Collection,CTX01,Postage & Distribution,370,9,TNT Post Midlands Ltd,146983,29/03/2012,10164711
Sustainable Inclusive Communities,Housing Benefit Administration,HBA00,Postage & Distribution,370,63.35,TNT Post Midlands Ltd,146983,29/03/2012,10164711
Housing Revenue Account ,Supervision and Management General,MAN00,Postage & Distribution,370,1074.48,TNT Post Midlands Ltd,146983,29/03/2012,10164711
Economy Development & Culture,Planning General/Income,PLN00,Postage & Distribution,370,98.57,TNT Post Midlands Ltd,146983,29/03/2012,10164711
Resources & Corporate Governance ,General Administration,WAD00,Postage & Distribution,370,1.28,TNT Post Midlands Ltd,146983,29/03/2012,10164711
Capital Program ,Pettiver Crescent,PCH00,Capital Contract Payments,5000,1000,REDACTED PERSONAL DATA,147031,29/03/2012,10164771
Capital Program ,Corporate Property Enhancements,CPE00,Capital Contract Payments,5000,1824,General Asphalte Company,147047,29/03/2012,10164993
Resources & Corporate Governance ,"Communications, Consultation and Information Team",BTR20,Consultation,378,800,Fonemedia Ltd,147064,22/03/2012,10163496
Sustainable Environment ,Communities Against Drugs,CAD00,Development Activities,450,3032.5,Fonemedia Ltd,147064,22/03/2012,10163496
Housing Revenue Account ,Unplanned Maintenance and Repair,UMR00,R&M External Contractors,100,2033.62,T. Clarke East Ltd,147073,01/03/2012,10163750
Housing Revenue Account ,Unplanned Maintenance and Repair,UMR00,R&M External Contractors,100,922.39,T. Clarke East Ltd,147073,08/03/2012,10164273
Housing Revenue Account ,Estate Management,MAN22,Movement Incentives,454,141.53,T. Clarke East Ltd,147073,08/03/2012,10164273
Housing Revenue Account ,Unplanned Maintenance and Repair,UMR00,R&M External Contractors,100,3563.58,T. Clarke East Ltd,147073,22/03/2012,10164734
Capital Program ,Disabled Adaptations,HCR01,Capital Contract Payments,5000,17.69,T. Clarke East Ltd,147073,22/03/2012,10164734
Housing Revenue Account ,Unplanned Maintenance and Repair,UMR00,R&M External Contractors,100,808.63,Alpha Electrical Midlands Ltd,147074,01/03/2012,10163878
Housing Revenue Account ,Unplanned Maintenance and Repair,UMR00,R&M External Contractors,100,608.45,Alpha Electrical Midlands Ltd,147074,08/03/2012,10164293
Housing Revenue Account ,Unplanned Maintenance and Repair,UMR00,R&M External Contractors,100,555.76,Alpha Electrical Midlands Ltd,147074,08/03/2012,10164329
Housing Revenue Account ,Unplanned Maintenance and Repair,UMR00,R&M External Contractors,100,420.44,Alpha Electrical Midlands Ltd,147074,15/03/2012,10164513
Capital Program ,Kitchen Modifications,HIK10,Capital Contract Payments,5000,26500,CLC Contractors Ltd,147076,15/03/2012,10163849
Housing Revenue Account ,Control Centre CCTV,CCE01,Maintenance of Equipment,301,914.91,Delaware Communications plc,147077,01/03/2012,10163595
Housing Revenue Account ,Control Centre CCTV,CCE01,Maintenance of Equipment,301,914.91,Delaware Communications plc,147077,29/03/2012,10164923
Housing Revenue Account ,Gas Heating Systems,UMR01,R&M External Contractors,100,10786.65,Integral UK Ltd,147080,01/03/2012,10163862
Housing Revenue Account ,Unplanned Maintenance and Repair,UMR00,R&M External Contractors,100,368.03,Integral UK Ltd,147080,08/03/2012,10164328
Housing Revenue Account ,Gas Heating Systems,UMR01,R&M External Contractors,100,660,Integral UK Ltd,147080,08/03/2012,10164328
Housing Revenue Account ,Carbon Monoxide Detectors,UMR07,R&M External Contractors,100,9299.4,Integral UK Ltd,147080,08/03/2012,10164328
Housing Revenue Account ,Unplanned Maintenance and Repair,UMR00,R&M External Contractors,100,588.7,Intelligent Disabled Solutions Ltd,147081,01/03/2012,10163746
Capital Program ,Queen's Diamond Jubilee Leisure Centre Project,LEI03,Capital Contract Payments,5000,28090.5,B3 Architects,147190,22/03/2012,10163818
Capital Program ,Queen's Diamond Jubilee Leisure Centre Project,LEI03,Capital Contract Payments,5000,17302.5,B3 Architects,147190,22/03/2012,10164058
Resources & Corporate Governance,Corporate Property R&M,CPA01,R&M External Contractors,100,553.5,AirTech Controls Ltd,147262,15/03/2012,10164242
Capital Program ,Corporate Property Enhancements,CPE00,Postage & Distribution,370,300,JS Humidifiers plc,147263,22/03/2012,10164833
Capital Program ,Corporate Property Enhancements,CPE00,Capital Contract Payments,5000,19270.3,JS Humidifiers plc,147263,22/03/2012,10164833
Resources & Corporate Governance,Handy man,WHM00,Materials,303,1060.7,ECA Supplies (Coventry) Limited,147276,08/03/2012,10164230
Resources & Corporate Governance,Handy man,WHM00,Materials,303,824.1,ECA Supplies (Coventry) Limited,147276,22/03/2012,10164233
Resources & Corporate Governance,Housing Fencing,WFE00,External Contractor & Operator,742,539,Stephen Lamb Fencing,147298,22/03/2012,10164612
Resources & Corporate Governance,Housing Fencing,WFE00,External Contractor & Operator,742,560,Stephen Lamb Fencing,147298,29/03/2012,10165471
Resources & Corporate Governance,Handy man,WHM00,External Contractor & Operator,742,562.49,Stewart Groom Flooring,147316,22/03/2012,10164981
Capital Program ,Heating Upgrades,HIM01,Capital Contract Payments,5000,18487.42,Liberty Gas Group,147368,01/03/2012,10162663
Capital Program ,Heating Upgrades,HIM01,Capital Contract Payments,5000,42256.96,Liberty Gas Group,147368,22/03/2012,10164047
Capital Program ,Heating Upgrades,HIM01,Capital Contract Payments,5000,18487.42,Liberty Gas Group,147368,22/03/2012,10164593
Capital Program ,Heating Upgrades,HIM01,Capital Contract Payments,5000,7923.18,Liberty Gas Group,147368,29/03/2012,10164723
Capital Program ,Bathroom Modifications,HIS01,Capital Contract Payments,5000,87533,TSG Building Services Plc,147369,22/03/2012,10164635
Capital Program ,Bathroom Modifications,HIS01,Capital Contract Payments,5000,27410,TSG Building Services Plc,147369,29/03/2012,10165393
Resources & Corporate Governance ,Domestic Waste Collection,WWC00,Contract Hire,220,1450,Trash UK Limited,147379,01/03/2012,10163695
Resources & Corporate Governance ,Domestic Waste Collection,WWC00,Contract Hire,220,1450,Trash UK Limited,147379,22/03/2012,10164530
Resources & Corporate Governance ,Domestic Waste Collection,WWC00,Contract Hire,220,2175,Trash UK Limited,147379,29/03/2012,10165377
Capital Program ,Kitchen Modifications,HIK10,Capital Contract Payments,5000,19369.61,Rixonway Kitchens Ltd,147446,29/03/2012,10164227
Capital Program ,RG Disabled Facilities,REN01,Capital Grants,5014,2000,Pollards Property Solution,147541,15/03/2012,10164503
Capital Program ,RG Disabled Facilities,REN01,Capital Grants,5014,4100,Pollards Property Solution,147541,22/03/2012,10164770
Sustainable Inclusive Communities,Housing Options Team,HOT00,Consultancy Costs,740,3000,Beacon Improvement Ltd,147615,08/03/2012,10164143
Sustainable Inclusive Communities,Housing Options Team,HOT00,Consultancy Costs,740,750,Beacon Improvement Ltd,147615,22/03/2012,10164178
Resources & Corporate Governance ,Brownsover Community Centre,CPM01,External Legal Costs,741,4103.6,Mills & Reeve LLP,147655,22/03/2012,10163928
Resources & Corporate Governance,Corporate Property R&M,CPA01,R&M External Contractors,100,452.13,S R Turton Ltd,147729,29/03/2012,10165266
Capital Program ,Concrete Retaining Bay,RCY04,Capital Contract Payments,5000,6850,Reclaimed Appliances Ltd,147742,29/03/2012,10164309
Resources & Corporate Governance,Handy man,WHM00,External Contractor & Operator,742,600,David Norton General Builder,147755,01/03/2012,10163966
Resources & Corporate Governance,Handy man,WHM00,External Contractor & Operator,742,660,David Norton General Builder,147755,08/03/2012,10164256
Capital Program ,Purchase of Vehicles,VHC00,Miscellaneous Capital Expenditure,5020,19044,Chris Tallis Farm Machinery Limited,147758,29/03/2012,10164158
Resources & Corporate Governance ,Grounds Maintenance,WGM00,Tools,304,3820,Chris Tallis Farm Machinery Limited,147758,22/03/2012,10164804
Sustainable Environment ,Communities Against Drugs,CAD00,Development Activities,450,600,Community Information Services Ltd,147761,15/03/2012,10164077
Capital Program ,Viaduct Cycleways,CYC02,Capital Contract Payments,5000,46806.21,Currall Lewis & Martin (Construction) Ltd,147769,15/03/2012,10164370
Sustainable Environment,Environmental Protection FPNs,REG20,New Equipment,300,1220,Brissco Signs & Graphic,147785,22/03/2012,10164048
Resources & Corporate Governance ,Human Resources Centralised Services,RES31,Training fees,11,6900,University Of Leicester,147786,29/03/2012,10164989
Economy Development & Culture,Positive Futures,LSD04,Training fees,11,455,UK Youth,147787,01/03/2012,10162018
Capital Program ,Concrete Retaining Bay,RCY04,Capital Contract Payments,5000,5192.25,Smiths Concrete Ltd,147799,22/03/2012,10164810
Capital Program ,Concrete Retaining Bay,RCY04,Capital Contract Payments,5000,4588.5,Smiths Concrete Ltd,147799,22/03/2012,10164811
Housing Revenue Account ,Estate Management,MAN22,Movement Incentives,454,4181.01,REDACTED PERSONAL DATA,147802,08/03/2012,10164173
Resources & Corporate Governance ,Human Resources Centralised Services,RES31,Training fees,11,3750,Tomorrow Today Ltd,147810,08/03/2012,10164112
Housing Revenue Account ,Estate Management,MAN22,Movement Incentives,454,4700,REDACTED PERSONAL DATA,147822,08/03/2012,10164174
Capital Program ,Pettiver Crescent,PCH00,Capital Contract Payments,5000,4514.64,REDACTED PERSONAL DATA,147851,22/03/2012,10164740
Resources & Corporate Governance ,Human Resources Centralised Services,RES31,Training fees,11,2800,Talent & Potential Ltd,147852,29/03/2012,10165057
Resources & Corporate Governance ,Human Resources Centralised Services,RES31,Other,763,204.74,Talent & Potential Ltd,147852,29/03/2012,10165057
Resources & Corporate Governance ,"Communications, Consultation and Information Team",BTR20,Publicity & Marketing,377,1000,Cole Creative Communications Ltd,147857,22/03/2012,10164743
Resources & Corporate Governance ,"Communications, Consultation and Information Team",BTR20,Photographic Expenses,355,3500,Cole Creative Communications Ltd,147857,22/03/2012,10164835
Resources & Corporate Governance,Housing Fencing,WFE00,External Contractor & Operator,742,539,D Wesley Contracts,147871,22/03/2012,10164611
Capital Program ,Pettiver Crescent,PCH00,Capital Contract Payments,5000,4626.99,REDACTED PERSONAL DATA,147878,15/03/2012,10164594
Sustainable Environment,Regulatory Services,REG00,External Legal Costs,741,955,Dennings LLP,147881,01/03/2012,10163476
Resources & Corporate Governance ,Highways,WHG00,External Contractor & Operator,742,2282.4,H S Jackson & Son (Fencing) Ltd,147882,01/03/2012,10163808
Resources & Corporate Governance ,Highways,WHG00,Materials,303,966,H S Jackson & Son (Fencing) Ltd,147882,22/03/2012,10164472
Resources & Corporate Governance,Handy man,WHM00,External Contractor & Operator,742,537,Coventry Garage Doors,147883,22/03/2012,10164821
Resources & Corporate Governance ,Human Resources Centralised Services,RES31,Training fees,11,700,Human Applications Ltd,147884,01/03/2012,10163902
Resources & Corporate Governance,Corporate Property R&M,CPA01,R&M External Contractors,100,547.09,Aaztec Associates Ltd,147885,29/03/2012,10165046
Housing Revenue Account ,Estate Management,MAN22,Movement Incentives,454,1000,REDACTED PERSONAL DATA,147907,01/03/2012,10163873
Resources & Corporate Governance,Handy man,WHM00,External Contractor & Operator,742,625,Mr Steve Sullivan,147910,01/03/2012,10163973
Capital Program ,Youth Club Development,CGR05,Capital Grants,5014,1676,Binley Woods Parish Council,147922,08/03/2012,10164133
Sustainable Inclusive Communities,Housing Benefit Administration,HBA00,Training fees,11,646.34,REDACTED PERSONAL DATA,147932,08/03/2012,10164284
,Balance Sheet,BS,Car Loan Scheme,9261,3590,Kirkby Cars,147933,08/03/2012,10164349
,Balance Sheet,BS,Car Loan Scheme,9261,4781,Chana Car Centre,147934,08/03/2012,10164348
Housing Revenue Account ,Estate Management,MAN22,Movement Incentives,454,1000,REDACTED PERSONAL DATA,147935,08/03/2012,10164369
,Balance Sheet,BS,Car Loan Scheme,9261,3500,Nuneaton Car Centre Ltd,147937,15/03/2012,10164499
Sustainable Inclusive Communities,CL Grants,CGS00,Grants To Voluntary Organisations,720,2000,Hillmorton Vale Residents Association,147944,15/03/2012,10164517
,Balance Sheet,BS,Car Loan Scheme,9261,6744,REDACTED PERSONAL DATA,147945,15/03/2012,10164548
Economy Development & Culture,AGM Conservation/Documentation,AGM01,Other Miscellaneous Expenses,444,575,Ramfoam Ltd,147953,29/03/2012,10165328
Capital Program ,Pettiver Crescent,PCH00,Capital Contract Payments,5000,5700,REDACTED PERSONAL DATA,147980,29/03/2012,10165162
,Balance Sheet,BS,Car Loan Scheme,9261,6722.01,South Northamptonshire Council,147981,29/03/2012,10165325
,Balance Sheet,BS,Car Loan Scheme,9261,3000,Richards James Cars,147984,29/03/2012,10165382
,Balance Sheet,BS,Contributions To NNDR Pool,9476,1051796,Department for Communities & Local Govt,,01/03/2012,
,Balance Sheet,BS,Contributions To NNDR Pool,9476,1051796,Department for Communities & Local Govt,,22/03/2012,
Resources & Corporate Governance,Legal Services,DEM20,Books Journals,353,515,Archibold & Wisdom,,08/03/2012,
